Workbook

Sheet Data Entry
B1: CII Asset Protection - Needs Analysis and Data Entry
C2: Actual Age | D2: Gender | E2: Smoking Status
A3: Name of Client: | B3: Valued Client | C3: 45 | D3: Male
A4: Annual Income: | B4: 100000 | G4: English
A5: Salary Increase: | B5: 0.03 | G5: French
A6: Return of Premium C/E:
A7: Illustrate values to age: | B7: 71
B9: Registered Assets | C9: Non-Registered Assets
A10: Starting Balance: | B10: 200000 | C10: 40000
A11: Annual Deposit: | B11: 18000 | C11: 3000
A12: Years of Deposit: | B12: 15 | C12: =Yrs -> 15
A13: Pre-Tax Growth Rate: | B13: 0.04 | C13: 0.04
A14: Tax Rate: | B14: 0.35 | C14: 0.35
A16: CI Need
A17: Illness at Age: | B17: 55
A18: Number of Months Income Replacement Needed: | B18: 12
A19: Income Replacement Percentage: | B19: 0.75
A20: Health Care Costs in Today's Dollars: | B20: 50000
A21: Home Care Costs in Today's Dollars: | B21: 50000
A22: Health & Home Care Inflation Rate: | B22: 0.04
A23: Actual Need Calculated: | B23: =NeedCalculatedDataEntryDisplay -> 248818.1569
A25: CI Insurance Face Amount Selected: | B25: 250000
A26: Years of Premium Paid: | B26: =Yrs -> 15
A27: Annual Premium: | B27: 0
A29: Advisor Name: | B29: Mary Advisor, CFP
A30: Advisor Address: | B30: 123 Any Street
A31: City/Province/Postal Code: | B31: Anytown, ON L8M 3R8
A32: Advisor Telephone Number: | B32: 416 555-1212
A33: Advisor Fax Number:
A34: Advisor Email Address: | B34: mary.advisor@sunlife.com
A36: Report Language: | B36: English
A38: To view case summary click on the 'Print Report' button.

Sheet Lists (hidden)
A1: Male | B1: Non-smoker | C1: ROPC/E - 15 years | D1: ROPC/E - 15 years
A2: Female | B2: Smoker | C2: ROPC/E - age 65 | D2: ROPC/E - age 75
C3: ROPC/E - age 75
A4: English
A5: French

Sheet Variables (hidden)
A1: MinFACE | B1: 25000 | D1: Gender | E1: Female | F1: =IF('Data Entry'!B36="English",Gender,IF(Gender="Male","Homme",IF(Gender="Female","Femme",Gender))) -> Female | H1: Text Box 48 | I1: =IF('Data Entry'!B36="English","CII protection may be required","Protection d’AMG peut-être requise") -> CII protection may be required
A2: MaxFACE | B2: 2000000 | D2: SStatus | E2: Non-smoker | F2: =IF('Data Entry'!B36="English",SStatus,IF(SStatus="Non-smoker","Non-fumeur",IF(SStatus="Smoker","Fumeur",SStatus))) -> Non-smoker | H2: Text Box 47 | I2: =IF('Data Entry'!B36="English","Impact on investment portfolio","Répercussions sur le portefeuille de placements") -> Impact on investment portfolio
A3: MinIssueAge | B3: 18 | D3: RiskClass
A4: MaxIssueAge | B4: 60 | D4: ROPString | E4: ROPC/E - 15 years | F4: =IF('Data Entry'!B36="English",ROPYrStr,IF(ROPYrStr="ROPC/E - age 65","RDPR/E – 65 ans",IF(ROPYrStr="ROPC/E - age 75","RDPR/E – 75 ans",IF(ROPYrStr="ROPC/E - 15 years","RDPR/E – 15 années","")))) -> ROPC/E - 15 years
A5: MaxIllusAge | B5: 71 | D5: ROPYr | E5: =IF(ROPYrStr=Lists!C1,15,IF(ROPYrStr=Lists!C2,65,75)) -> 15
A6: MaxDur | B6: =MIN(MaxIllusAge - Age, IllustrateToAge - Age) -> 26 | D6: Valid Client | E6: =IF(AND(AND(AND(Age >= MinIssueAge, Age <= MaxIssueAge), TRIM(SStatus) <> ""), TRIM(Gender) <> ""), TRUE, FALSE) -> TRUE
A7: MoIncome | B7: =AnnualIncome/12 -> 8333.333333 | D7: ROPStartAge | E7: =IF(ROPYr = 15, Age + 15, 65) -> 60
A8: NonRegGrowth (after-tax) | B8: =NonRegGrowthBeforeTax * (1 - Tax) -> 0.026 | D8: Version | E8: 1.2
A9: CINeed (Face amount) | B9: =NeedSelected -> 250000 | D9: Language | E9: English
A10: Real Need Calculated | B10: =VLOOKUP(CIYr, CINeedTable, 9) -> 248818.1569
A11: Need Calculated (for Data Entry screen display) | B11: =RealNeedCalculated -> 248818.1569
A12: Actual Need (for No Ins Yes CI calcs) | B12: =RealNeedCalculated -> 248818.1569
A13: Need min/max wording | B13: =IF(RealNeedCalculated<MinFACE,"(Minimum policy)",IF(RealNeedCalculated>MaxFACE,"(Maximum policy)","")) ->  | D13: User | E13: Date | F13: Age | G13: Gender | H13: SStatus | I13: AnnualIncome | J13: SalIn | K13: ROPC/E | L13: IlustrateToAge | M13: RegBal | N13: RegDep | O13: RegYears | P13: RegGrowthBeforeTax | Q13: NonRegBal | R13: NonRegDep | S13: NonRegYears | T13: NonRegGrowthBeforeTax | U13: RegTaxRate | V13: NonRegTaxRate | W13: IllnessAge | X13: # Months Income Replacement | Y13: Income Replacement Percentage | Z13: Health Care | AA13: Home Care | AB13: Health & Home Care Inflation Rate | AC13: CI Need | AD13: CII Insurance | AE13: CII Years | AF13: CII Premium
A14: Need min/max wording adj | B14: =IF(NeedSelected < MinFACE, NeedMinMaxWording, "") ->  | E14: =TODAY() -> 2022-03-14 | F14: ='Data Entry'!$C$3 -> 45 | G14: =F1 -> Female | H14: =F2 -> Non-smoker | I14: =AnnualIncome -> 100000 | J14: =SalInc -> 0.03 | K14: =F4 -> ROPC/E - 15 years | L14: =IllustrateToAge -> 71 | M14: =Bal -> 200000 | N14: =Dep -> 18000 | O14: =Yrs -> 15 | P14: =Growth -> 0.04 | Q14: =NonRegBal -> 40000 | R14: =NonRegDep -> 3000 | S14: =Yrs -> 15 | T14: =NonRegGrowthBeforeTax -> 0.04 | U14: =RegTax_Rate -> 0.35 | V14: =Tax -> 0.35 | W14: =CIYr -> 55 | X14: ='Data Entry'!$B$18 -> 12 | Y14: =IncomePercentage -> 0.75 | Z14: =HlthCare -> 50000 | AA14: =HomeCare -> 50000 | AB14: =inf -> 0.04 | AC14: =RealNeedCalculated -> 248818.1569 | AD14: =CINeed -> 250000 | AE14: =Yrs -> 15 | AF14: =Prem -> 0
A15: AnnualIncome | B15: =ROUND('Data Entry'!B4,0) -> 100000
A16: SalIn | B16: =ROUND('Data Entry'!B5,4) -> 0.03
A17: Bal | B17: =ROUND('Data Entry'!B10,0) -> 200000
A18: Dep | B18: =ROUND('Data Entry'!B11,0) -> 18000
A19: Growth | B19: =ROUND('Data Entry'!B13,4) -> 0.04
A20: HlthCare | B20: =ROUND('Data Entry'!B20,0) -> 50000
A21: HomeCare | B21: =ROUND('Data Entry'!B21,0) -> 50000
A22: inf | B22: =ROUND('Data Entry'!B22,4) -> 0.04
A23: IncomePercentage | B23: =ROUND('Data Entry'!B19,4) -> 0.75
A24: InsufficientFunds (No Ins Yes CI) | B24: =IF(VLOOKUP(CIYr, 'No Ins Yes CI'!$B$4:$O$70, 14) <= 0, TRUE, FALSE) -> FALSE
A26: NonRegBal | B26: =ROUND('Data Entry'!C10,0) -> 40000
A27: NonRegDep | B27: =ROUND('Data Entry'!C11,0) -> 3000
A28: NonRegGrowthBeforeTax | B28: =ROUND('Data Entry'!C13,4) -> 0.04
A29: Prem | B29: =ROUND('Data Entry'!B27,2) -> 0
A30: RegTax | B30: =ROUND('Data Entry'!B14,4) -> 0.35
A31: NonRegTax | B31: =ROUND('Data Entry'!C14,4) -> 0.35
A33: Advisor Info Formatted
A34: =IF(TRIM(AdvisorName)="", "", AdvisorName & " ") -> Mary Advisor, CFP
A35: =IF(TRIM(AdvisorAddress)="", "", AdvisorAddress & " ") -> 123 Any Street
A36: =IF(TRIM(AdvisorPostalCode)="", "", AdvisorPostalCode & " ") -> Anytown, ON L8M 3R8
A37: =IF(TRIM(AdvisorPhoneNumber)="", "", "Phone: " & AdvisorPhoneNumber & " ") -> Phone: 416 555-1212
A38: =IF(TRIM(AdvisorFaxNumber)="", "", "Fax: " & AdvisorFaxNumber & " ") -> 
A39: =IF(TRIM(AdvisorEmail)="", "", AdvisorEmail & " ") -> mary.advisor@sunlife.com

Sheet CI Need (hidden)
C1: CI Age: | D1: =CIYr -> 55
C3: Income Need | F3: Healthcare Need
A4: Age | B4: Yr | C4: Monthly Income | D4: Total Income Need | E4: ="Income Replacement"&TEXT(Variables!B23,"0.00%") -> Income Replacement75.00% | F4: Medical care | G4: Home care | H4: Total | I4: Total Need
A5: =Age -> 45 | B5: 1 | C5: =MoIncome -> 8333.333333 | D5: =C5*NoMon -> 100000 | E5: =D5*IncomePercentage -> 75000 | F5: =HlthCare -> 50000 | G5: =HomeCare -> 50000 | H5: =SUM(F5:G5) -> 100000 | I5: =H5+E5 -> 175000
A6: =A5+1 -> 46 | B6: 2 | C6: =C5*(1+SalInc) -> 8583.333333 | D6: 103000 | E6: 77250 | F6: =F5*(1+inf) -> 52000 | G6: =G5*(1+inf) -> 52000 | H6: =SUM(F6:G6) -> 104000 | I6: =H6+E6 -> 181250
A7: =A6+1 -> 47 | B7: 3 | C7: 8840.833333 | D7: 106090 | E7: 79567.5 | F7: =F6*(1+inf) -> 54080 | G7: =G6*(1+inf) -> 54080 | H7: =SUM(F7:G7) -> 108160 | I7: 187727.5
A8: 48 | B8: 4 | C8: 9106.058333 | D8: 109272.7 | E8: 81954.525 | F8: 56243.2 | G8: 56243.2 | H8: 112486.4 | I8: 194440.925
A9: 49 | B9: 5 | C9: 9379.240083 | D9: 112550.881 | E9: 84413.16075 | F9: 58492.928 | G9: 58492.928 | H9: 116985.856 | I9: 201399.0168
A10: 50 | B10: 6 | C10: 9660.617286 | D10: 115927.4074 | E10: 86945.55557 | F10: 60832.64512 | G10: 60832.64512 | H10: 121665.2902 | I10: 208610.8458
A11: 51 | B11: 7 | C11: 9950.435804 | D11: 119405.2297 | E11: 89553.92224 | F11: 63265.95092 | G11: 63265.95092 | H11: 126531.9018 | I11: 216085.8241
A12: 52 | B12: 8 | C12: 10248.94888 | D12: 122987.3865 | E12: 92240.53991 | F12: 65796.58896 | G12: 65796.58896 | H12: 131593.1779 | I12: 223833.7178
A13: 53 | B13: 9 | C13: 10556.41734 | D13: 126677.0081 | E13: 95007.7561 | F13: 68428.45252 | G13: 68428.45252 | H13: 136856.905 | I13: 231864.6611
A14: 54 | B14: 10 | C14: 10873.10987 | D14: =C14*NoMon -> 130477.3184 | E14: 97857.98879 | F14: 71165.59062 | G14: 71165.59062 | H14: 142331.1812 | I14: 240189.17
A15: 55 | B15: 11 | C15: 11199.30316 | D15: =C15*NoMon -> 134391.6379 | E15: 100793.7285 | F15: 74012.21425 | G15: 74012.21425 | H15: 148024.4285 | I15: 248818.1569
A16: 56 | B16: 12 | C16: 11535.28226 | D16: 138423.3871 | E16: 103817.5403 | F16: 76972.70282 | G16: 76972.70282 | H16: 153945.4056 | I16: 257762.9459
A17: 57 | B17: 13 | C17: 11881.34072 | D17: 142576.0887 | E17: 106932.0665 | F17: 80051.61093 | G17: 80051.61093 | H17: 160103.2219 | I17: 267035.2884
A18: 58 | B18: 14 | C18: 12237.78095 | D18: 146853.3713 | E18: 110140.0285 | F18: 83253.67537 | G18: 83253.67537 | H18: 166507.3507 | I18: 276647.3792
A19: 59 | B19: 15 | C19: 12604.91437 | D19: 151258.9725 | E19: 113444.2294 | F19: 86583.82238 | G19: 86583.82238 | H19: 173167.6448 | I19: 286611.8741
A20: 60 | B20: 16 | C20: 12983.06181 | D20: 155796.7417 | E20: 116847.5562 | F20: 90047.17528 | G20: 90047.17528 | H20: 180094.3506 | I20: 296941.9068
A21: 61 | B21: 17 | C21: 13372.55366 | D21: 160470.6439 | E21: 120352.9829 | F21: 93649.06229 | G21: 93649.06229 | H21: 187298.1246 | I21: 307651.1075
A22: 62 | B22: 18 | C22: 13773.73027 | D22: 165284.7632 | E22: 123963.5724 | F22: 97395.02478 | G22: 97395.02478 | H22: 194790.0496 | I22: 318753.622
A23: 63 | B23: 19 | C23: 14186.94218 | D23: 170243.3061 | E23: 127682.4796 | F23: 101290.8258 | G23: 101290.8258 | H23: 202581.6515 | I23: 330264.1311
A24: 64 | B24: 20 | C24: 14612.55044 | D24: =C24*NoMon -> 175350.6053 | E24: 131512.954 | F24: 105342.4588 | G24: 105342.4588 | H24: 210684.9176 | I24: 342197.8716
A25: 65 | B25: 21 | C25: 15050.92696 | D25: 180611.1235 | E25: 135458.3426 | F25: =F24*(1+inf) -> 109556.1572 | G25: =G24*(1+inf) -> 109556.1572 | H25: 219112.3143 | I25: 354570.6569
A26: 66 | B26: 22 | C26: 15502.45476 | D26: 186029.4572 | E26: 139522.0929 | F26: 113938.4034 | G26: 113938.4034 | H26: 227876.8069 | I26: 367398.8998
A27: 67 | B27: 23 | C27: 15967.52841 | D27: 191610.3409 | E27: 143707.7557 | F27: 118495.9396 | G27: 118495.9396 | H27: 236991.8792 | I27: 380699.6348
A28: 68 | B28: 24 | C28: 16446.55426 | D28: 197358.6511 | E28: 148018.9883 | F28: 123235.7772 | G28: 123235.7772 | H28: 246471.5543 | I28: 394490.5427
A29: 69 | B29: 25 | C29: 16939.95089 | D29: 203279.4106 | E29: 152459.558 | F29: 128165.2082 | G29: 128165.2082 | H29: 256330.4165 | I29: 408789.9745
A30: 70 | B30: 26 | C30: 17448.14941 | D30: 209377.793 | E30: 157033.3447 | F30: 133291.8166 | G30: 133291.8166 | H30: 266583.6331 | I30: 423616.9779
A31: 71 | B31: 27 | C31: 17971.5939 | D31: 215659.1268 | E31: 161744.3451 | F31: 138623.4892 | G31: 138623.4892 | H31: 277246.9785 | I31: 438991.3235
A32: 72 | B32: 28 | C32: 18510.74171 | D32: 222128.9006 | E32: 166596.6754 | F32: 144168.4288 | G32: 144168.4288 | H32: 288336.8576 | I32: 454933.533
A33: 73 | B33: 29 | C33: 19066.06396 | D33: 228792.7676 | E33: 171594.5757 | F33: 149935.166 | G33: 149935.166 | H33: 299870.3319 | I33: 471464.9076
A34: 74 | B34: 30 | C34: 19638.04588 | D34: 235656.5506 | E34: 176742.413 | F34: =F33*(1+inf) -> 155932.5726 | G34: =G33*(1+inf) -> 155932.5726 | H34: 311865.1452 | I34: 488607.5581
A35: 75 | B35: 31 | C35: 20227.18726 | D35: 242726.2471 | E35: 182044.6853 | F35: 162169.8755 | G35: 162169.8755 | H35: 324339.751 | I35: 506384.4363
A36: 76 | B36: 32 | C36: 20834.00288 | D36: 250008.0345 | E36: 187506.0259 | F36: 168656.6705 | G36: 168656.6705 | H36: 337313.341 | I36: 524819.3669
A37: 77 | B37: 33 | C37: 21459.02296 | D37: 257508.2756 | E37: =D37*IncomePercentage -> 193131.2067 | F37: 175402.9373 | G37: 175402.9373 | H37: 350805.8747 | I37: 543937.0814
A38: 78 | B38: 34 | C38: =C37*(1+SalInc) -> 22102.79365 | D38: 265233.5238 | E38: 198925.1429 | F38: 182419.0548 | G38: 182419.0548 | H38: 364838.1097 | I38: 563763.2525
A39: 79 | B39: 35 | C39: 22765.87746 | D39: 273190.5296 | E39: 204892.8972 | F39: 189715.817 | G39: 189715.817 | H39: 379431.6341 | I39: 584324.5312
A40: 80 | B40: 36 | C40: 23448.85379 | D40: 281386.2454 | E40: 211039.6841 | F40: 197304.4497 | G40: 197304.4497 | H40: 394608.8994 | I40: 605648.5835
A41: 81 | B41: 37 | C41: 24152.3194 | D41: 289827.8328 | E41: 217370.8746 | F41: 205196.6277 | G41: 205196.6277 | H41: 410393.2554 | I41: 627764.13
A42: 82 | B42: 38 | C42: 24876.88898 | D42: 298522.6678 | E42: 223892.0008 | F42: 213404.4928 | G42: 213404.4928 | H42: 426808.9856 | I42: 650700.9865
A43: 83 | B43: 39 | C43: 25623.19565 | D43: 307478.3478 | E43: 230608.7609 | F43: 221940.6725 | G43: 221940.6725 | H43: 443881.345 | I43: 674490.1059
A44: 84 | B44: 40 | C44: 26391.89152 | D44: 316702.6983 | E44: 237527.0237 | F44: 230818.2994 | G44: 230818.2994 | H44: 461636.5988 | I44: 699163.6225
A45: 85 | B45: 41 | C45: 27183.64827 | D45: 326203.7792 | E45: 244652.8344 | F45: 240051.0314 | G45: 240051.0314 | H45: 480102.0628 | I45: 724754.8972
A46: 86 | B46: 42 | C46: 27999.15771 | D46: 335989.8926 | E46: 251992.4194 | F46: 249653.0727 | G46: 249653.0727 | H46: 499306.1453 | I46: 751298.5647
A47: 87 | B47: 43 | C47: 28839.13245 | D47: 346069.5894 | E47: 259552.192 | F47: 259639.1956 | G47: 259639.1956 | H47: 519278.3911 | I47: 778830.5831
A48: 88 | B48: 44 | C48: 29704.30642 | D48: 356451.677 | E48: 267338.7578 | F48: 270024.7634 | G48: 270024.7634 | H48: 540049.5268 | I48: 807388.2845
A49: 89 | B49: 45 | C49: 30595.43561 | D49: 367145.2273 | E49: 275358.9205 | F49: 280825.7539 | G49: 280825.7539 | H49: 561651.5078 | I49: 837010.4283
A50: 90 | B50: 46 | C50: 31513.29868 | D50: 378159.5842 | E50: 283619.6881 | F50: 292058.7841 | G50: 292058.7841 | H50: 584117.5681 | I50: 867737.2563
A51: 91 | B51: 47 | C51: 32458.69764 | D51: 389504.3717 | E51: 292128.2788 | F51: 303741.1354 | G51: 303741.1354 | H51: 607482.2709 | I51: 899610.5496
A52: 92 | B52: 48 | C52: 33432.45857 | D52: 401189.5028 | E52: 300892.1271 | F52: 315890.7809 | G52: 315890.7809 | H52: 631781.5617 | I52: 932673.6888
A53: 93 | B53: 49 | C53: 34435.43233 | D53: 413225.1879 | E53: 309918.8909 | F53: 328526.4121 | G53: 328526.4121 | H53: 657052.8242 | I53: 966971.7151
A54: 94 | B54: 50 | C54: 35468.4953 | D54: 425621.9436 | E54: 319216.4577 | F54: 341667.4686 | G54: 341667.4686 | H54: 683334.9371 | I54: 1002551.395
A55: 95 | B55: 51 | C55: 36532.55016 | D55: =C55*NoMon -> 438390.6019 | E55: 328792.9514 | F55: 355334.1673 | G55: 355334.1673 | H55: =SUM(F55:G55) -> 710668.3346 | I55: 1039461.286
A56: 96 | B56: 52 | C56: 37628.52666 | D56: 451542.3199 | E56: 338656.7399 | F56: 369547.534 | G56: 369547.534 | H56: 739095.068 | I56: 1077751.808
A57: 97 | B57: 53 | C57: 38757.38246 | D57: 465088.5895 | E57: 348816.4421 | F57: 384329.4354 | G57: 384329.4354 | H57: 768658.8707 | I57: 1117475.313
A58: 98 | B58: 54 | C58: 39920.10393 | D58: 479041.2472 | E58: 359280.9354 | F58: 399702.6128 | G58: 399702.6128 | H58: 799405.2256 | I58: 1158686.161

Sheet No Ins No CI (hidden)
Q1: Scenario C Growth Rate | T1: -0.0178559953
Q2: Scenario C Non Reg Growth Rate | T2: =ScenarioCGrowth * (1 - Tax) -> 
C3: Registered Assets | J3: Non-Registered Assets | S3: Registered Assets | Z3: Non-Registered Assets
A4: Yr | B4: Age | C4: Beginning Balance | D4: Deposit | G4: Growth | H4: End Of Year Balance | J4: Beginning Balance | K4: Deposit | M4: After-tax Growth | N4: End Of Year Balance | O4: Total EOY Assets | Q4: Yr | R4: Age | S4: Beginning Balance | T4: Deposit | W4: Growth | X4: End Of Year Balance | Z4: Beginning Balance | AA4: Deposit | AC4: After-tax Growth | AD4: End Of Year Balance | AE4: Total EOY Assets
A5: 1 | B5: =Age+1 -> 46 | C5: =Bal -> 200000 | D5: =Dep -> 18000 | G5: =(C5+D5-E5-F5)*Growth -> 8720 | H5: =IF(C5+D5-E5-F5+G5<=0,0,C5+D5-E5-F5+G5) -> 226720 | J5: =NonRegBal -> 40000 | K5: =NonRegDep -> 3000 | M5: =(J5+K5-L5)*NonRegGrowth -> 1118 | N5: =J5+K5+M5 -> 44118 | O5: =H5+N5 -> 270838 | Q5: 1 | R5: =Age+1 -> 46 | S5: =Bal -> 200000 | T5: =Dep -> 18000 | W5: =(S5+T5-U5-V5)*ScenarioCGrowth ->  | X5: =IF(S5+T5-U5-V5+W5<=0,0,S5+T5-U5-V5+W5) ->  | Z5: =NonRegBal -> 40000 | AA5: =NonRegDep -> 3000 | AC5: =(Z5+AA5-AB5)*ScenarioCNonRegGrowth ->  | AD5: =Z5+AA5+AC5 ->  | AE5: =X5+AD5 -> 
A6: =IF(A5=" "," ",IF(B5+1>IllustrateToAge," ",A5+1)) -> 2 | B6: =IF(A6=" "," ",B5+1) -> 47 | C6: =IF(A6=" "," ",H5) -> 226720 | D6: =IF(A6=" "," ",IF(A6<=Yrs,Dep,0)) -> 18000 | G6: =IF(A6=" "," ",IF(C6+D6-E6-F6<=0,0,(C6+D6-E6-F6)*Growth)) -> 9788.8 | H6: =IF(A6=" "," ",IF(C6+D6-E6-F6+G6<=0,0,C6+D6-E6-F6+G6)) -> 254508.8 | J6: =IF(A6=" "," ",N5) -> 44118 | K6: =IF(A6=" "," ",IF(A6<=NonRegYrs,NonRegDep,0)) -> 3000 | M6: =IF(A6=" "," ",(J6+K6-L6)*NonRegGrowth) -> 1225.068 | N6: =IF(A6=" "," ",J6+K6+M6) -> 48343.068 | O6: =IF(A6=" "," ",H6+N6) -> 302851.868 | Q6: =IF(Q5=" "," ",IF(R5+1>IllustrateToAge," ",Q5+1)) -> 2 | R6: =IF(Q6=" "," ",R5+1) -> 47 | S6: =IF(Q6=" "," ",X5) ->  | T6: =IF(Q6=" "," ",IF(Q6<=Yrs,Dep,0)) -> 18000 | W6: =IF(Q6=" "," ",IF(S6+T6-U6-V6<=0,0,(S6+T6-U6-V6)*ScenarioCGrowth)) ->  | X6: =IF(Q6=" "," ",IF(S6+T6-U6-V6+W6<=0,0,S6+T6-U6-V6+W6)) ->  | Z6: =IF(Q6=" "," ",AD5) ->  | AA6: =IF(Q6=" "," ",IF(Q6<=NonRegYrs,NonRegDep,0)) -> 3000 | AC6: =IF(Q6=" "," ",(Z6+AA6-AB6)*ScenarioCNonRegGrowth) ->  | AD6: =IF(Q6=" "," ",Z6+AA6+AC6) ->  | AE6: =IF(Q6=" "," ",X6+AD6) -> 
A7: 3 | B7: 48 | C7: =IF(A7=" "," ",H6) -> 254508.8 | D7: 18000 | G7: =IF(A7=" "," ",IF(C7+D7-E7-F7<=0,0,(C7+D7-E7-F7)*Growth)) -> 10900.352 | H7: =IF(A7=" "," ",IF(C7+D7-E7-F7+G7<=0,0,C7+D7-E7-F7+G7)) -> 283409.152 | J7: =IF(A7=" "," ",N6) -> 48343.068 | K7: =IF(A7=" "," ",IF(A7<=NonRegYrs,NonRegDep,0)) -> 3000 | M7: =IF(A7=" "," ",(J7+K7-L7)*NonRegGrowth) -> 1334.919768 | N7: =IF(A7=" "," ",J7+K7+M7) -> 52677.98777 | O7: =IF(A7=" "," ",H7+N7) -> 336087.1398 | Q7: 3 | R7: 48 | T7: 18000 | AA7: 3000 | AD7: =IF(Q7=" "," ",Z7+AA7+AC7) -> 
A8: 4 | B8: 49 | C8: 283409.152 | D8: 18000 | G8: 12056.36608 | H8: 313465.5181 | J8: 52677.98777 | K8: 3000 | M8: 1447.627682 | N8: 57125.61545 | O8: 370591.1335 | Q8: 4 | R8: 49 | T8: 18000 | AA8: 3000
A9: 5 | B9: 50 | C9: 313465.5181 | D9: 18000 | G9: 13258.62072 | H9: 344724.1388 | J9: 57125.61545 | K9: 3000 | M9: 1563.266002 | N9: 61688.88145 | O9: 406413.0203 | Q9: 5 | R9: 50 | T9: 18000 | AA9: 3000
A10: 6 | B10: 51 | C10: 344724.1388 | D10: 18000 | G10: 14508.96555 | H10: 377233.1044 | J10: 61688.88145 | K10: 3000 | M10: 1681.910918 | N10: 66370.79237 | O10: 443603.8967 | Q10: 6 | R10: 51 | T10: 18000 | AA10: 3000
A11: 7 | B11: 52 | C11: 377233.1044 | D11: 18000 | G11: 15809.32417 | H11: 411042.4285 | J11: 66370.79237 | K11: 3000 | M11: 1803.640602 | N11: 71174.43297 | O11: 482216.8615 | Q11: 7 | R11: 52 | T11: 18000 | AA11: 3000
A12: 8 | B12: 53 | C12: 411042.4285 | D12: 18000 | G12: 17161.69714 | H12: 446204.1257 | J12: 71174.43297 | K12: 3000 | M12: 1928.535257 | N12: 76102.96823 | O12: 522307.0939 | Q12: 8 | R12: 53 | T12: 18000 | AA12: 3000
A13: 9 | B13: 54 | C13: 446204.1257 | D13: 18000 | G13: 18568.16503 | H13: 482772.2907 | J13: 76102.96823 | K13: 3000 | M13: 2056.677174 | N13: 81159.6454 | O13: 563931.9361 | Q13: 9 | R13: 54 | T13: 18000 | AA13: 3000
A14: 10 | B14: 55 | C14: 482772.2907 | D14: 18000 | G14: 20030.89163 | H14: 520803.1823 | J14: 81159.6454 | K14: 3000 | M14: 2188.15078 | N14: 86347.79618 | O14: 607150.9785 | Q14: 10 | R14: 55 | T14: 18000 | AA14: 3000
A15: 11 | B15: 56 | C15: 520803.1823 | D15: 18000 | G15: 21552.12729 | H15: 560355.3096 | J15: 86347.79618 | K15: 3000 | M15: 2323.042701 | N15: 91670.83888 | O15: 652026.1485 | Q15: 11 | R15: 56 | T15: 18000 | AA15: 3000
A16: 12 | B16: 57 | C16: 560355.3096 | D16: 18000 | G16: 23134.21238 | H16: 601489.522 | J16: 91670.83888 | K16: 3000 | M16: 2461.441811 | N16: 97132.28069 | O16: 698621.8027 | Q16: 12 | R16: 57 | T16: 18000 | AA16: 3000
A17: 13 | B17: 58 | C17: 601489.522 | D17: 18000 | G17: 24779.58088 | H17: 644269.1029 | J17: 97132.28069 | K17: 3000 | M17: 2603.439298 | N17: 102735.72 | O17: 747004.8229 | Q17: 13 | R17: 58 | T17: 18000 | AA17: 3000
A18: 14 | B18: 59 | C18: 644269.1029 | D18: 18000 | G18: 26490.76412 | H18: 688759.867 | J18: 102735.72 | K18: 3000 | M18: 2749.12872 | N18: 108484.8487 | O18: 797244.7157 | Q18: 14 | R18: 59 | T18: 18000 | AA18: 3000
A19: 15 | B19: 60 | C19: 688759.867 | D19: 18000 | G19: 28270.39468 | H19: 735030.2617 | J19: 108484.8487 | K19: 3000 | M19: 2898.606067 | N19: 114383.4548 | O19: 849413.7165 | Q19: 15 | R19: 60 | T19: 18000 | AA19: 3000
A20: 16 | B20: 61 | C20: 735030.2617 | D20: 0 | G20: 29401.21047 | H20: 764431.4721 | J20: 114383.4548 | K20: 0 | M20: 2973.969824 | N20: 117357.4246 | O20: 881788.8967 | Q20: 16 | R20: 61 | T20: 0 | AA20: 0
A21: 17 | B21: 62 | C21: 764431.4721 | D21: 0 | G21: 30577.25889 | H21: 795008.731 | J21: 117357.4246 | K21: 0 | M21: 3051.29304 | N21: 120408.7176 | O21: 915417.4487 | Q21: 17 | R21: 62 | T21: 0 | AA21: 0
A22: 18 | B22: 63 | C22: 795008.731 | D22: 0 | G22: 31800.34924 | H22: 826809.0803 | J22: 120408.7176 | K22: 0 | M22: 3130.626659 | N22: 123539.3443 | O22: 950348.4246 | Q22: 18 | R22: 63 | T22: 0 | AA22: 0
A23: 19 | B23: 64 | C23: 826809.0803 | D23: 0 | G23: 33072.36321 | H23: 859881.4435 | J23: 123539.3443 | K23: 0 | M23: 3212.022952 | N23: 126751.3673 | O23: 986632.8107 | Q23: 19 | R23: 64 | T23: 0 | AA23: 0
A24: 20 | B24: 65 | C24: 859881.4435 | D24: 0 | G24: 34395.25774 | H24: 894276.7012 | J24: 126751.3673 | K24: 0 | M24: 3295.535549 | N24: 130046.9028 | O24: 1024323.604 | Q24: 20 | R24: 65 | T24: 0 | AA24: 0
A25: 21 | B25: 66 | C25: 894276.7012 | D25: 0 | G25: 35771.06805 | H25: 930047.7693 | J25: 130046.9028 | K25: 0 | M25: 3381.219473 | N25: 133428.1223 | O25: 1063475.892 | Q25: 21 | R25: 66 | T25: 0 | AA25: 0
A26: 22 | B26: 67 | C26: 930047.7693 | D26: 0 | G26: 37201.91077 | H26: 967249.68 | J26: 133428.1223 | K26: 0 | M26: 3469.131179 | N26: 136897.2535 | O26: 1104146.933 | Q26: 22 | R26: 67 | T26: 0 | AA26: 0
A27: 23 | B27: 68 | C27: 967249.68 | D27: 0 | G27: 38689.9872 | H27: 1005939.667 | J27: 136897.2535 | K27: 0 | M27: 3559.32859 | N27: 140456.582 | O27: 1146396.249 | Q27: 23 | R27: 68 | T27: 0 | X27: =IF(Q27=" "," ",IF(S27+T27-U27-V27+W27<=0,0,S27+T27-U27-V27+W27)) ->  | AA27: 0
A28: 24 | B28: 69 | C28: 1005939.667 | D28: 0 | G28: 40237.58669 | H28: 1046177.254 | J28: 140456.582 | K28: 0 | M28: 3651.871133 | N28: 144108.4532 | O28: 1190285.707 | Q28: 24 | R28: 69 | T28: 0 | X28: =IF(Q28=" "," ",IF(S28+T28-U28-V28+W28<=0,0,S28+T28-U28-V28+W28)) ->  | AA28: 0
A29: 25 | B29: 70 | C29: 1046177.254 | D29: 0 | G29: 41847.09016 | H29: 1088024.344 | J29: 144108.4532 | K29: 0 | M29: 3746.819783 | N29: 147855.273 | O29: 1235879.617 | Q29: 25 | R29: 70 | T29: 0 | AA29: 0
A30: 26 | B30: 71 | C30: 1088024.344 | D30: 0 | G30: 43520.97376 | H30: 1131545.318 | J30: 147855.273 | K30: 0 | M30: 3844.237097 | N30: 151699.5101 | O30: 1283244.828 | Q30: 26 | R30: 71 | T30: 0 | AA30: 0
Z34: =IF(Q34=" "," ",AD33) ->  | AE34: =IF(Q34=" "," ",X34+AD34) -> 
Z35: =IF(Q35=" "," ",AD34) ->  | AE35: =IF(Q35=" "," ",X35+AD35) -> 
A38: =IF(A37=" "," ",IF(B37+1>IllustrateToAge," ",A37+1)) ->  | D38: =IF(A38=" "," ",IF(A38<=Yrs,Dep,0)) ->  | Q38: =IF(Q37=" "," ",IF(R37+1>IllustrateToAge," ",Q37+1)) ->  | W38: =IF(Q38=" "," ",IF(S38+T38-U38-V38<=0,0,(S38+T38-U38-V38)*ScenarioCGrowth)) ->  | AC38: =IF(Q38=" "," ",(Z38+AA38-AB38)*ScenarioCNonRegGrowth) -> 
B47: =IF(A47=" "," ",B46+1) ->  | R47: =IF(Q47=" "," ",R46+1) -> 
B48: =IF(A48=" "," ",B47+1) ->  | R48: =IF(Q48=" "," ",R47+1) -> 
C58: =IF(A58=" "," ",H57) ->  | D58: =IF(A58=" "," ",IF(A58<=Yrs,Dep,0)) ->  | G58: =IF(A58=" "," ",IF(C58+D58-E58-F58<=0,0,(C58+D58-E58-F58)*Growth)) ->  | H58: =IF(A58=" "," ",IF(C58+D58-E58-F58+G58<=0,0,C58+D58-E58-F58+G58)) ->  | J58: =IF(A58=" "," ",N57) ->  | K58: =IF(A58=" "," ",IF(A58<=NonRegYrs,NonRegDep,0)) ->  | M58: =IF(A58=" "," ",(J58+K58-L58)*NonRegGrowth) ->  | N58: =IF(A58=" "," ",J58+K58+M58) ->  | O58: =IF(A58=" "," ",H58+N58) -> 
G70: =IF(A70=" "," ",IF(C70+D70-E70-F70<=0,0,(C70+D70-E70-F70)*Growth)) ->  | H70: =IF(A70=" "," ",IF(C70+D70-E70-F70+G70<=0,0,C70+D70-E70-F70+G70)) ->  | M70: =IF(A70=" "," ",(J70+K70-L70)*NonRegGrowth) ->  | N70: =IF(A70=" "," ",J70+K70+M70) ->  | O70: =IF(A70=" "," ",H70+N70) ->  | S70: =IF(Q70=" "," ",X69) ->  | T70: =IF(Q70=" "," ",IF(Q70<=Yrs,Dep,0)) ->  | W70: =IF(Q70=" "," ",IF(S70+T70-U70-V70<=0,0,(S70+T70-U70-V70)*ScenarioCGrowth)) ->  | AA70: =IF(Q70=" "," ",IF(Q70<=NonRegYrs,NonRegDep,0)) ->  | AC70: =IF(Q70=" "," ",(Z70+AA70-AB70)*ScenarioCNonRegGrowth) -> 

Sheet No Ins Yes CI (hidden)
C3: Registered Assets | J3: Non-Registered Assets
A4: Yr | B4: Age | C4: Beginning Balance | D4: Deposit | F4: CI Event / Withdrawal | G4: Growth | H4: End Of Year Balance | J4: Beginning Balance | K4: Deposit | L4: CI Event Withdrawal | M4: After-tax Growth | N4: End Of Year Balance | O4: Total EOY Assets
A5: 1 | B5: =Age+1 -> 46 | C5: =Bal -> 200000 | D5: =Dep -> 18000 | F5: =IF(A5=" "," ",IF(AND(B5=CIYr,L5<ActualNeed),(ActualNeed-L5)/(1-RegTax_Rate),0)) -> 0 | G5: =IF(A5=" "," ",IF(C5+D5-E5-F5<=0,0,(C5+D5-E5-F5)*Growth)) -> 8720 | H5: =IF(A5=" "," ",IF(C5+D5-E5-F5+G5<=0,0,C5+D5-E5-F5+G5)) -> 226720 | J5: =NonRegBal -> 40000 | K5: =NonRegDep -> 3000 | L5: =IF(AND(B5=CIYr,J5>=0),MIN(ActualNeed,J5+K5),0) -> 0 | M5: =(J5+K5-L5)*NonRegGrowth -> 1118 | N5: =J5+K5-L5+M5 -> 44118 | O5: =H5+N5 -> 270838
A6: =IF(A5=" "," ",IF(B5+1>IllustrateToAge," ",A5+1)) -> 2 | B6: =IF(A6=" "," ",B5+1) -> 47 | C6: =IF(A6=" "," ",H5) -> 226720 | D6: =IF(A6=" "," ",IF(B6=CIYr,0,IF(A6<=Yrs,Dep,0))) -> 18000 | F6: 0 | G6: =IF(A6=" "," ",IF(C6+D6-E6-F6<=0,0,(C6+D6-E6-F6)*Growth)) -> 9788.8 | H6: =IF(A6=" "," ",IF(C6+D6-E6-F6+G6<=0,0,C6+D6-E6-F6+G6)) -> 254508.8 | J6: =IF(A6=" "," ",N5) -> 44118 | K6: =IF(A6=" "," ",IF(B6=CIYr,0,IF(A6<=NonRegYrs,NonRegDep,0))) -> 3000 | L6: 0 | M6: =IF(A6=" "," ",(J6+K6-L6)*NonRegGrowth) -> 1225.068 | N6: =IF(A6=" "," ",J6+K6-L6+M6) -> 48343.068 | O6: =IF(A6=" "," ",H6+N6) -> 302851.868
A7: 3 | B7: 48 | C7: 254508.8 | D7: =IF(A7=" "," ",IF(B7=CIYr,0,IF(A7<=Yrs,Dep,0))) -> 18000 | F7: 0 | G7: 10900.352 | H7: 283409.152 | J7: 48343.068 | K7: =IF(A7=" "," ",IF(B7=CIYr,0,IF(A7<=NonRegYrs,NonRegDep,0))) -> 3000 | L7: 0 | M7: =IF(A7=" "," ",(J7+K7-L7)*NonRegGrowth) -> 1334.919768 | N7: =IF(A7=" "," ",J7+K7-L7+M7) -> 52677.98777 | O7: 336087.1398
A8: 4 | B8: 49 | C8: 283409.152 | D8: =IF(A8=" "," ",IF(B8=CIYr,0,IF(A8<=Yrs,Dep,0))) -> 18000 | F8: 0 | G8: =IF(A8=" "," ",IF(C8+D8-E8-F8<=0,0,(C8+D8-E8-F8)*Growth)) -> 12056.36608 | H8: =IF(A8=" "," ",IF(C8+D8-E8-F8+G8<=0,0,C8+D8-E8-F8+G8)) -> 313465.5181 | J8: 52677.98777 | K8: =IF(A8=" "," ",IF(B8=CIYr,0,IF(A8<=NonRegYrs,NonRegDep,0))) -> 3000 | L8: 0 | M8: =IF(A8=" "," ",(J8+K8-L8)*NonRegGrowth) -> 1447.627682 | N8: =IF(A8=" "," ",J8+K8-L8+M8) -> 57125.61545 | O8: =IF(A8=" "," ",H8+N8) -> 370591.1335
A9: 5 | B9: 50 | C9: 313465.5181 | D9: 18000 | F9: 0 | G9: 13258.62072 | H9: 344724.1388 | J9: 57125.61545 | K9: 3000 | L9: 0 | M9: 1563.266002 | N9: 61688.88145 | O9: 406413.0203
A10: 6 | B10: 51 | C10: 344724.1388 | D10: 18000 | F10: 0 | G10: 14508.96555 | H10: 377233.1044 | J10: 61688.88145 | K10: 3000 | L10: 0 | M10: 1681.910918 | N10: 66370.79237 | O10: 443603.8967
A11: 7 | B11: 52 | C11: 377233.1044 | D11: 18000 | F11: 0 | G11: 15809.32417 | H11: 411042.4285 | J11: 66370.79237 | K11: 3000 | L11: 0 | M11: 1803.640602 | N11: 71174.43297 | O11: 482216.8615
A12: 8 | B12: 53 | C12: 411042.4285 | D12: 18000 | F12: 0 | G12: 17161.69714 | H12: 446204.1257 | J12: 71174.43297 | K12: 3000 | L12: 0 | M12: 1928.535257 | N12: 76102.96823 | O12: 522307.0939
A13: 9 | B13: 54 | C13: 446204.1257 | D13: 18000 | F13: 0 | G13: 18568.16503 | H13: 482772.2907 | J13: 76102.96823 | K13: 3000 | L13: 0 | M13: 2056.677174 | N13: 81159.6454 | O13: 563931.9361
A14: 10 | B14: 55 | C14: 482772.2907 | D14: 0 | F14: 257936.1716 | G14: 8993.444764 | H14: 233829.5639 | J14: 81159.6454 | K14: 0 | L14: 81159.6454 | M14: 0 | N14: 0 | O14: 233829.5639
A15: 11 | B15: 56 | C15: 233829.5639 | D15: 18000 | F15: 0 | G15: 10073.18255 | H15: 261902.7464 | J15: 0 | K15: 3000 | L15: 0 | M15: 78 | N15: 3078 | O15: 264980.7464
A16: 12 | B16: 57 | C16: 261902.7464 | D16: 18000 | F16: 0 | G16: 11196.10986 | H16: 291098.8563 | J16: 3078 | K16: 3000 | L16: 0 | M16: 158.028 | N16: 6236.028 | O16: 297334.8843
A17: 13 | B17: 58 | C17: 291098.8563 | D17: 18000 | F17: 0 | G17: 12363.95425 | H17: 321462.8105 | J17: 6236.028 | K17: 3000 | L17: 0 | M17: 240.136728 | N17: 9476.164728 | O17: 330938.9753
A18: 14 | B18: 59 | C18: 321462.8105 | D18: 18000 | F18: 0 | G18: 13578.51242 | H18: 353041.3229 | J18: 9476.164728 | K18: 3000 | L18: 0 | M18: 324.3802829 | N18: 12800.54501 | O18: 365841.868
A19: 15 | B19: 60 | C19: 353041.3229 | D19: 18000 | F19: 0 | G19: 14841.65292 | H19: 385882.9759 | J19: 12800.54501 | K19: 3000 | L19: 0 | M19: 410.8141703 | N19: 16211.35918 | O19: 402094.335
A20: 16 | B20: 61 | C20: 385882.9759 | D20: 0 | F20: 0 | G20: 15435.31903 | H20: 401318.2949 | J20: 16211.35918 | K20: 0 | L20: 0 | M20: 421.4953387 | N20: 16632.85452 | O20: 417951.1494
A21: 17 | B21: 62 | C21: 401318.2949 | D21: 0 | F21: 0 | G21: 16052.7318 | H21: 417371.0267 | J21: 16632.85452 | K21: 0 | L21: 0 | M21: 432.4542175 | N21: 17065.30874 | O21: 434436.3354
A22: 18 | B22: 63 | C22: 417371.0267 | D22: 0 | F22: 0 | G22: 16694.84107 | H22: 434065.8678 | J22: 17065.30874 | K22: 0 | L22: 0 | M22: 443.6980272 | N22: 17509.00676 | O22: 451574.8745
A23: 19 | B23: 64 | C23: 434065.8678 | D23: 0 | F23: 0 | G23: 17362.63471 | H23: 451428.5025 | J23: 17509.00676 | K23: 0 | L23: 0 | M23: 455.2341759 | N23: 17964.24094 | O23: 469392.7434
A24: 20 | B24: 65 | C24: 451428.5025 | D24: 0 | F24: 0 | G24: 18057.1401 | H24: 469485.6426 | J24: 17964.24094 | K24: 0 | L24: 0 | M24: 467.0702645 | N24: 18431.3112 | O24: 487916.9538
A25: 21 | B25: 66 | C25: 469485.6426 | D25: 0 | F25: 0 | G25: 18779.4257 | H25: 488265.0683 | J25: 18431.3112 | K25: 0 | L25: 0 | M25: 479.2140913 | N25: 18910.5253 | O25: 507175.5936
A26: 22 | B26: 67 | C26: 488265.0683 | D26: 0 | F26: 0 | G26: 19530.60273 | H26: 507795.671 | J26: 18910.5253 | K26: 0 | L26: 0 | M26: 491.6736577 | N26: 19402.19895 | O26: 527197.87
A27: 23 | B27: =IF(A27=" "," ",B26+1) -> 68 | C27: =IF(A27=" "," ",H26) -> 507795.671 | D27: 0 | F27: 0 | G27: 20311.82684 | H27: 528107.4978 | J27: 19402.19895 | K27: 0 | L27: 0 | M27: 504.4571728 | N27: 19906.65613 | O27: 548014.154
A28: 24 | B28: 69 | C28: 528107.4978 | D28: 0 | F28: 0 | G28: 21124.29991 | H28: 549231.7978 | J28: 19906.65613 | K28: 0 | L28: 0 | M28: 517.5730593 | N28: 20424.22919 | O28: 569656.0269
A29: 25 | B29: 70 | C29: 549231.7978 | D29: 0 | F29: 0 | G29: 21969.27191 | H29: 571201.0697 | J29: 20424.22919 | K29: 0 | L29: 0 | M29: 531.0299588 | N29: 20955.25914 | O29: 592156.3288
A30: 26 | B30: 71 | C30: 571201.0697 | D30: 0 | F30: 0 | G30: 22848.04279 | H30: 594049.1125 | J30: 20955.25914 | K30: 0 | L30: 0 | M30: 544.8367378 | N30: 21500.09588 | O30: 615549.2083
L31: 0
L32: 0
L33: 0
J34: =IF(A34=" "," ",N33) ->  | L34: 0
J35: =IF(A35=" "," ",N34) ->  | L35: 0
L36: 0
F37: =IF(A37=" "," ",IF(AND(B37=CIYr,L37<ActualNeed),(ActualNeed-L37)/(1-RegTax_Rate),0)) ->  | L37: =IF(AND(B37=CIYr,J37>=0),MIN(ActualNeed,J37+K37),0) -> 0
A38: =IF(A37=" "," ",IF(B37+1>IllustrateToAge," ",A37+1)) ->  | L38: 0
L39: 0
L40: 0
L41: 0
L42: 0
L43: 0
L44: 0
L45: 0
L46: 0
B47: =IF(A47=" "," ",B46+1) ->  | L47: 0
B48: =IF(A48=" "," ",B47+1) ->  | L48: 0
L49: 0
L50: 0
L51: 0
L52: 0
L53: 0
L54: 0
L55: 0
L56: 0
L57: 0
D58: =IF(A58=" "," ",IF(B58=CIYr,0,IF(A58<=Yrs,Dep,0))) ->  | F58: =IF(A58=" "," ",IF(AND(B58=CIYr,L58<ActualNeed),(ActualNeed-L58)/(1-Tax),0)) ->  | G58: =IF(A58=" "," ",IF(C58+D58-E58-F58<=0,0,(C58+D58-E58-F58)*Growth)) ->  | H58: =IF(A58=" "," ",IF(C58+D58-E58-F58+G58<=0,0,C58+D58-E58-F58+G58)) ->  | K58: =IF(A58=" "," ",IF(B58=CIYr,0,IF(A58<=NonRegYrs,NonRegDep,0))) ->  | L58: =IF(AND(B58=CIYr,J58>0),MIN(ActualNeed,J58+K58),0) -> 0 | M58: =IF(A58=" "," ",(J58+K58-L58)*NonRegGrowth) ->  | N58: =IF(A58=" "," ",J58+K58-L58+M58) ->  | O58: =IF(A58=" "," ",H58+N58) -> 
L59: 0
L60: 0
L61: 0
L62: 0
L63: 0
L64: 0
L65: 0
L66: 0
L67: 0
L68: 0
L69: =IF(AND(B69=CIYr,J69>0),MIN(ActualNeed,J69+K69),0) -> 0
G70: =IF(A70=" "," ",IF(C70+D70-E70-F70<=0,0,(C70+D70-E70-F70)*Growth)) ->  | L70: =IF(AND(B70=CIYr,J70>0),MIN(ActualNeed,J70+K70),0) -> 0 | M70: =IF(A70=" "," ",(J70+K70-L70)*NonRegGrowth) -> 

Sheet Report (hidden)
A2: Stop Loss protection for your investments
A3: (a strategy using Sun Critical Illness Insurance)
A4: Prepared for: | B4: =IF(TRIM(Name) = "", "", Name) -> Valued Client
A5: Prepared by: | B5: =IF(TRIM(AdvisorName) = "", "", AdvisorName) -> Mary Advisor, CFP
A7: You've worked hard, made it a priority to save for the future and relied on the expertise of your advisor to
A8: develop a sound investment plan. When it comes to retirement, you'll want to enjoy it on your own terms.
A9: But what would happen to your savings if you were diagnosed with a critical illness?
A11: Critical illness insurance helps avoid having to prematurely withdraw money from your investments. It
A12: provides a lump sum benefit that can be used however you choose, including: 1) funding private or
A13: alternative medical treatment; 2) funding necessary home care; and 3) replacing lost income.
A35: =IF(VLOOKUP(CIYr,Results,3)<=0,"Under Scenario B, you will not have enough savings to meet your needs. You might have to borrow or sell"," ") -> 
A36: =IF(VLOOKUP(CIYr,Results,3)<=0,"assets to cover the shortfall."," ") -> 
A38: Scenario descriptions and results | F38: ="Portfolio value at age " & IllustrateToAge -> Portfolio value at age 71 | G38: ="Impact on portfolio at age " & IllustrateToAge -> Impact on portfolio at age 71
A39: A. Annual deposits with no insurance and no critical illness | F39: =ROUND(VLOOKUP(IllustrateToAge,Results,2),0) -> 
A40: ="B. Annual deposits with no insurance and a critical illness at age " & CIYr -> B. Annual deposits with no insurance and a critical illness at age 55 | F40: =ROUND(VLOOKUP(IllustrateToAge,Results,3),0) ->  | G40: =F39-F40 -> 
A41: ="C. Annual deposits reduced by Sun Critical Illness Insurance premium, no illness occurs" & IF(ROPStartAge <= IllustrateToAge," and ROP is claimed at age " & IllustrateToAge, "") -> C. Annual deposits reduced by Sun Critical Illness Insurance premium, no illness occurs and ROP is claimed at age 71 | F41: =ROUND(VLOOKUP(IllustrateToAge,Results,4),0) ->  | G41: =F39-F41 -> 
A43: ="The annual cost of protecting your investment portfolio with Sun Critical Illness Insurance is " & DOLLAR(Prem, 2) -> The annual cost of protecting your investment portfolio with Sun Critical Illness Insurance is $0.00
A46: Sun Life Financial products are issued by Sun Life Assurance Company of Canada, a member of the Sun Life Financial group of companies.
A48: =NOW() -> 2022-03-14T14:54:36.990 | G48: Page 1 of 2
A50: Stop Loss protection assumptions
A51: (a strategy using Sun Critical Illness Insurance)
A55: Name | C55: Sex | D55: Age | E55: Rate class | F55: Annual income | G55: Assumed age of critical illness
A56: =Name -> Valued Client | C56: =Gender -> Female | D56: =Age -> 45 | E56: =_xlfn.SINGLE(SStatus) -> Non-smoker | F56: =MoIncome*12 -> 100000 | G56: =CIYr -> 55
E58: Registered | F58: Non-registered | G58: Total
B59: Existing investment assets: | E59: =Bal -> 200000 | F59: =NonRegBal -> 40000 | G59: =E59+F59 -> 240000
B60: Annual deposits: | E60: =Dep -> 18000 | F60: =NonRegDep -> 3000 | G60: =E60+F60 -> 21000
B61: Years of deposit: | E61: =Yrs -> 15 | F61: =NonRegYrs -> 15
B62: Net growth rate: | E62: =Growth -> 0.04 | F62: =NonRegGrowth -> 0.026
B63: Tax rate: | F63: =Tax -> 0.35
A65: The amount of critical illness insurance to protect your assets is determined as follows:
B67: Coverage need | E67: Current cost | F67: Inflation rate | G67: ="Cost @ Age " & CIYr -> Cost @ Age 55
B68: Medical care: | E68: =HlthCare -> 50000 | F68: =inf -> 0.04 | G68: =ROUND(VLOOKUP(CIYr,CINeedTable,6),0) -> 74012
B69: Home care: | E69: =HomeCare -> 50000 | F69: =inf -> 0.04 | G69: =ROUND(VLOOKUP(CIYr,CINeedTable,7),0) -> 74012
B70: Income replacement: | E70: =ROUND('CI Need'!D5,0) -> 100000 | F70: =SalInc -> 0.03 | G70: =ROUND(VLOOKUP(CIYr,CINeedTable,4),0) -> 134392
B71: Total need: | E71: =SUM(E68:E70) -> 200000 | G71: =SUM(G68:G70) -> 282416
B72: Insurance amount selected: | E72: =CINeed -> 250000 | F72: =NeedMinMaxWordingAdj -> 
B73: Annual premium: | E73: =Prem -> 0
A75: The amount of insurance and premium can only be guaranteed after an application has been underwritten and
A76: a policy is issued. The coverage in this example has a level premium and expires on the policy anniversary nearest
A77: ="your 75th birthday. The Return of premium on cancellation or expiry benefit is first available " & IF(ROPYr = 15, "after 15 years.", "on the policy anniversary nearest age 65.") -> your 75th birthday. The Return of premium on cancellation or expiry benefit is first available after 15 years.
A79: All coverage and benefits illustrated will be subject to underwriting review and approval.
A81: This illustration is prepared for information purposes only. It's not an insurance policy and it's not an offer to
A82: provide insurance. Premiums are based on Sun Life Financial's rates in effect on the date shown below.
A84: Values shown are hypothetical and may change significantly with only a small change in one of the assumptions.
A85: You can request an alternate scenario from your advisor.
A87: For more information about Sun Critical Illness Insurance please visit our website at www.sunlife.ca.
A88: If you have any questions, please contact your advisor:
B90: =AdvisorNameFormatted -> Mary Advisor, CFP
B91: =AdvisorAddressFormatted & AdvisorPostalCodeFormatted & AdvisorPhoneNumberFormatted & AdvisorFaxNumberFormatted & AdvisorEmailFormatted -> 123 Any Street Anytown, ON L8M 3R8 Phone: 416 555-1212 mary.advisor@sunlife.com
A92: Sun Life Financial products are issued by Sun Life Assurance Company of Canada, a member of the Sun Life Financial group of companies.
A94: =NOW() -> 2022-03-14T14:54:36.990 | G94: Page 2 of 2

Sheet Yes Ins Yes CI (hidden)
C3: Registered Assets | J3: Non-Registered Assets
A4: Yr | B4: Age | C4: Beginning Balance | D4: Deposit | E4: Insurance Premium | F4: CI Event / Withdrawal | G4: Growth | H4: End Of Year Balance | J4: Beginning Balance | K4: Deposit | L4: CI Event Withdrawal | M4: CII Benefit Received | N4: Insurance Premium | O4: After-tax Growth | P4: End Of Year Balance | Q4: Total EOY Assets | S4: Premium
A5: 1 | B5: =Age+1 -> 46 | C5: =Bal -> 200000 | D5: =Dep -> 18000 | E5: =IF(A5<=Yrs,IF(AND(B5<CIYr,Prem>NonRegDep),(Prem-NonRegDep), 0),0) -> 0 | F5: =IF(A5=" "," ",IF(AND(B5=CIYr,L5<(ActualNeed)),(ActualNeed-L5)/(1-RegTax_Rate),0)) -> 0 | G5: =(C5+D5-E5-F5)*Growth -> 8720 | H5: =IF(C5+D5-E5-F5+G5<=0,0,C5+D5-E5-F5+G5) -> 226720 | J5: =NonRegBal -> 40000 | K5: =NonRegDep -> 3000 | L5: =IF(AND(B5=CIYr,J5>=0),MIN(ActualNeed,J5+K5+M5),0) -> 0 | M5: =IF(CIYr=B5,NeedSelected, 0) -> 0 | N5: =IF(A5<=NonRegYrs,IF(B5<CIYr,MIN(Prem,NonRegDep),0),0) -> 0 | O5: =IF(A5=" "," ",(J5+K5-L5+M5-N5)*NonRegGrowth) -> 1118 | P5: =IF(A5=" "," ",J5+K5-L5+M5-N5+O5) -> 44118 | Q5: =H5+P5 -> 270838 | S5: =IF(CIYr>=B5, Prem, 0) -> 0 | T5: =S5=N5+E5 -> TRUE
A6: =IF(A5=" "," ",IF(B5+1>IllustrateToAge," ",A5+1)) -> 2 | B6: =IF(A6=" "," ",B5+1) -> 47 | C6: =IF(A6=" "," ",H5) -> 226720 | D6: =IF(A6=" "," ",IF(B6=CIYr,0,IF(A6<=Yrs,Dep,0))) -> 18000 | E6: 0 | F6: =IF(A6=" "," ",IF(AND(B6=CIYr,L6<(ActualNeed)),(ActualNeed-L6)/(1-RegTax_Rate),0)) -> 0 | G6: =IF(A6=" "," ",IF(C6+D6-E6-F6<=0,0,(C6+D6-E6-F6)*Growth)) -> 9788.8 | H6: =IF(A6=" "," ",IF(C6+D6-E6-F6+G6<=0,0,C6+D6-E6-F6+G6)) -> 254508.8 | J6: =IF(A6=" "," ",P5) -> 44118 | K6: =IF(A6=" "," ",IF(B6=CIYr,0,IF(A6<=NonRegYrs,NonRegDep,0))) -> 3000 | L6: 0 | M6: =IF(CIYr=B6, NeedSelected, 0) -> 0 | N6: 0 | O6: 1225.068 | P6: =IF(A6=" "," ",J6+K6-L6+M6-N6+O6) -> 48343.068 | Q6: =IF(A6=" "," ",H6+P6) -> 302851.868 | S6: 0 | T6: =S6=N6+E6 -> TRUE
A7: 3 | B7: 48 | C7: 254508.8 | D7: =IF(A7=" "," ",IF(B7=CIYr,0,IF(A7<=Yrs,Dep,0))) -> 18000 | E7: 0 | F7: 0 | G7: 10900.352 | H7: 283409.152 | J7: 48343.068 | K7: =IF(A7=" "," ",IF(B7=CIYr,0,IF(A7<=NonRegYrs,NonRegDep,0))) -> 3000 | L7: 0 | M7: =IF(CIYr=B7, NeedSelected, 0) -> 0 | N7: =IF(A7<=NonRegYrs,IF(B7<CIYr,MIN(Prem,NonRegDep),0),0) -> 0 | O7: =IF(A7=" "," ",(J7+K7-L7+M7-N7)*NonRegGrowth) -> 1334.919768 | P7: 52677.98777 | Q7: =IF(A7=" "," ",H7+P7) -> 336087.1398 | S7: 0 | T7: TRUE
A8: 4 | B8: 49 | C8: 283409.152 | D8: 18000 | E8: 0 | F8: 0 | G8: 12056.36608 | H8: 313465.5181 | J8: 52677.98777 | K8: 3000 | L8: 0 | M8: 0 | N8: 0 | O8: 1447.627682 | P8: 57125.61545 | Q8: 370591.1335 | S8: 0 | T8: TRUE
A9: 5 | B9: 50 | C9: 313465.5181 | D9: 18000 | E9: 0 | F9: 0 | G9: 13258.62072 | H9: 344724.1388 | J9: 57125.61545 | K9: 3000 | L9: 0 | M9: 0 | N9: 0 | O9: 1563.266002 | P9: 61688.88145 | Q9: 406413.0203 | S9: 0 | T9: TRUE
A10: 6 | B10: 51 | C10: 344724.1388 | D10: 18000 | E10: 0 | F10: 0 | G10: 14508.96555 | H10: 377233.1044 | J10: 61688.88145 | K10: 3000 | L10: 0 | M10: 0 | N10: 0 | O10: 1681.910918 | P10: 66370.79237 | Q10: 443603.8967 | S10: 0 | T10: TRUE
A11: 7 | B11: 52 | C11: 377233.1044 | D11: 18000 | E11: 0 | F11: 0 | G11: 15809.32417 | H11: 411042.4285 | J11: 66370.79237 | K11: 3000 | L11: 0 | M11: 0 | N11: 0 | O11: 1803.640602 | P11: 71174.43297 | Q11: 482216.8615 | S11: 0 | T11: TRUE
A12: 8 | B12: 53 | C12: 411042.4285 | D12: 18000 | E12: 0 | F12: 0 | G12: 17161.69714 | H12: 446204.1257 | J12: 71174.43297 | K12: 3000 | L12: 0 | M12: 0 | N12: 0 | O12: 1928.535257 | P12: 76102.96823 | Q12: 522307.0939 | S12: 0 | T12: TRUE
A13: 9 | B13: 54 | C13: 446204.1257 | D13: 18000 | E13: 0 | F13: 0 | G13: 18568.16503 | H13: 482772.2907 | J13: 76102.96823 | K13: 3000 | L13: 0 | M13: 0 | N13: 0 | O13: 2056.677174 | P13: 81159.6454 | Q13: 563931.9361 | S13: 0 | T13: TRUE
A14: 10 | B14: 55 | C14: 482772.2907 | D14: 0 | E14: 0 | F14: 0 | G14: 19310.89163 | H14: 502083.1823 | J14: 81159.6454 | K14: 0 | L14: 248818.1569 | M14: 250000 | N14: 0 | O14: 2140.8787 | P14: 84482.36716 | Q14: 586565.5495 | S14: 0 | T14: TRUE
A15: 11 | B15: 56 | C15: 502083.1823 | D15: 18000 | E15: 0 | F15: 0 | G15: 20803.32729 | H15: 540886.5096 | J15: 84482.36716 | K15: 3000 | L15: 0 | M15: 0 | N15: 0 | O15: 2274.541546 | P15: 89756.90871 | Q15: 630643.4183 | S15: 0 | T15: TRUE
A16: 12 | B16: 57 | C16: 540886.5096 | D16: 18000 | E16: 0 | F16: 0 | G16: 22355.46038 | H16: 581241.97 | J16: 89756.90871 | K16: 3000 | L16: 0 | M16: 0 | N16: 0 | O16: 2411.679626 | P16: 95168.58833 | Q16: 676410.5583 | S16: 0 | T16: TRUE
A17: 13 | B17: 58 | C17: 581241.97 | D17: 18000 | E17: 0 | F17: 0 | G17: 23969.6788 | H17: 623211.6488 | J17: 95168.58833 | K17: 3000 | L17: 0 | M17: 0 | N17: 0 | O17: 2552.383297 | P17: 100720.9716 | Q17: 723932.6204 | S17: 0 | T17: TRUE
A18: 14 | B18: 59 | C18: 623211.6488 | D18: 18000 | E18: 0 | F18: 0 | G18: 25648.46595 | H18: 666860.1148 | J18: 100720.9716 | K18: 3000 | L18: 0 | M18: 0 | N18: 0 | O18: 2696.745262 | P18: 106417.7169 | Q18: 773277.8316 | S18: 0 | T18: TRUE
A19: 15 | B19: 60 | C19: 666860.1148 | D19: 18000 | E19: 0 | F19: 0 | G19: 27394.40459 | H19: 712254.5193 | J19: 106417.7169 | K19: 3000 | L19: 0 | M19: 0 | N19: 0 | O19: 2844.860639 | P19: 112262.5775 | Q19: 824517.0969 | S19: 0 | T19: TRUE
A20: 16 | B20: 61 | C20: 712254.5193 | D20: 0 | E20: 0 | F20: 0 | G20: 28490.18077 | H20: 740744.7001 | J20: 112262.5775 | K20: 0 | L20: 0 | M20: 0 | N20: 0 | O20: 2918.827016 | P20: 115181.4045 | Q20: 855926.1047 | S20: 0 | T20: TRUE
A21: 17 | B21: 62 | C21: 740744.7001 | D21: 0 | E21: 0 | F21: 0 | G21: 29629.788 | H21: 770374.4881 | J21: 115181.4045 | K21: 0 | L21: 0 | M21: 0 | N21: 0 | O21: 2994.716518 | P21: 118176.1211 | Q21: 888550.6092 | S21: 0 | T21: TRUE
A22: 18 | B22: 63 | C22: 770374.4881 | D22: 0 | E22: 0 | F22: 0 | G22: 30814.97952 | H22: 801189.4676 | J22: 118176.1211 | K22: 0 | L22: 0 | M22: 0 | N22: 0 | O22: 3072.579148 | P22: 121248.7002 | Q22: 922438.1679 | S22: 0 | T22: TRUE
A23: 19 | B23: 64 | C23: 801189.4676 | D23: 0 | E23: 0 | F23: 0 | G23: 32047.57871 | H23: 833237.0464 | J23: 121248.7002 | K23: 0 | L23: 0 | M23: 0 | N23: 0 | O23: 3152.466206 | P23: 124401.1664 | Q23: 957638.2128 | S23: 0 | T23: TRUE
A24: 20 | B24: 65 | C24: 833237.0464 | D24: 0 | E24: 0 | F24: 0 | G24: 33329.48185 | H24: 866566.5282 | J24: 124401.1664 | K24: 0 | L24: 0 | M24: 0 | N24: 0 | O24: 3234.430327 | P24: 127635.5967 | Q24: 994202.125 | S24: 0 | T24: TRUE
A25: 21 | B25: 66 | C25: 866566.5282 | D25: 0 | E25: 0 | F25: 0 | G25: 34662.66113 | H25: 901229.1893 | J25: 127635.5967 | K25: 0 | L25: 0 | M25: 0 | N25: 0 | O25: 3318.525515 | P25: 130954.1223 | Q25: 1032183.312 | S25: 0 | T25: TRUE
A26: 22 | B26: 67 | C26: 901229.1893 | D26: 0 | E26: 0 | F26: 0 | G26: 36049.16757 | H26: 937278.3569 | J26: 130954.1223 | K26: 0 | L26: 0 | M26: 0 | N26: 0 | O26: 3404.807179 | P26: 134358.9294 | Q26: 1071637.286 | S26: 0 | T26: TRUE
A27: 23 | B27: 68 | C27: 937278.3569 | D27: 0 | E27: 0 | F27: 0 | G27: 37491.13428 | H27: =IF(A27=" "," ",IF(C27+D27-E27-F27+G27<=0,0,C27+D27-E27-F27+G27)) -> 974769.4912 | J27: 134358.9294 | K27: 0 | L27: 0 | M27: 0 | N27: 0 | O27: 3493.332165 | P27: 137852.2616 | Q27: 1112621.753 | S27: 0 | T27: TRUE
A28: 24 | B28: 69 | C28: 974769.4912 | D28: 0 | E28: 0 | F28: 0 | G28: 38990.77965 | H28: =IF(A28=" "," ",IF(C28+D28-E28-F28+G28<=0,0,C28+D28-E28-F28+G28)) -> 1013760.271 | J28: 137852.2616 | K28: 0 | L28: 0 | M28: 0 | N28: 0 | O28: 3584.158802 | P28: 141436.4204 | Q28: 1155196.691 | S28: 0 | T28: TRUE
A29: 25 | B29: 70 | C29: 1013760.271 | D29: 0 | E29: 0 | F29: 0 | G29: 40550.41083 | H29: 1054310.682 | J29: 141436.4204 | K29: 0 | L29: 0 | M29: 0 | N29: 0 | O29: 3677.346931 | P29: 145113.7673 | Q29: 1199424.449 | S29: 0 | T29: TRUE
A30: 26 | B30: 71 | C30: 1054310.682 | D30: 0 | E30: 0 | F30: 0 | G30: 42172.42727 | H30: 1096483.109 | J30: 145113.7673 | K30: 0 | L30: 0 | M30: 0 | N30: 0 | O30: 3772.957951 | P30: 148886.7253 | Q30: 1245369.834 | S30: 0 | T30: TRUE
E31: 0 | L31: 0 | M31: 0 | N31: 0
E32: 0 | L32: 0 | M32: 0 | N32: 0
E33: 0 | L33: 0 | M33: 0 | N33: 0
E34: 0 | J34: =IF(A34=" "," ",P33) ->  | L34: 0 | M34: 0 | N34: 0
E35: 0 | J35: =IF(A35=" "," ",P34) ->  | L35: 0 | M35: 0 | N35: 0
E36: 0 | L36: 0 | M36: 0 | N36: 0
E37: =IF(A37<=Yrs,IF(AND(B37<CIYr,Prem>NonRegDep),(Prem-NonRegDep), 0),0) -> 0 | F37: =IF(A37=" "," ",IF(AND(B37=CIYr,L37<(ActualNeed)),(ActualNeed-L37)/(1-RegTax_Rate),0)) ->  | L37: =IF(AND(B37=CIYr,J37>=0),MIN(ActualNeed,J37+K37+M37),0) -> 0 | M37: 0 | N37: 0
E38: 0 | L38: 0 | M38: 0 | N38: 0
E39: 0 | L39: 0 | M39: 0 | N39: 0
E40: 0 | L40: 0 | M40: 0 | N40: 0
E41: 0 | L41: 0 | M41: 0 | N41: 0
E42: 0 | L42: 0 | M42: 0 | N42: 0
E43: 0 | L43: 0 | M43: 0 | N43: 0
E44: 0 | L44: 0 | M44: 0 | N44: 0
E45: 0 | L45: 0 | M45: 0 | N45: 0
E46: 0 | L46: 0 | M46: 0 | N46: 0
B47: =IF(A47=" "," ",B46+1) ->  | E47: 0 | L47: 0 | M47: 0 | N47: 0
B48: =IF(A48=" "," ",B47+1) ->  | E48: 0 | L48: 0 | M48: 0 | N48: 0
E49: 0 | L49: 0 | M49: 0 | N49: 0
E50: 0 | L50: 0 | M50: 0 | N50: 0
E51: 0 | L51: 0 | M51: 0 | N51: 0
E52: 0 | L52: 0 | M52: 0 | N52: 0
E53: 0 | L53: 0 | M53: 0 | N53: 0
E54: 0 | L54: 0 | M54: 0 | N54: 0
E55: 0 | L55: 0 | M55: 0 | N55: 0
E56: 0 | L56: 0 | M56: 0 | N56: 0
E57: 0 | L57: 0 | M57: 0 | N57: 0
E58: =IF(A58<=Yrs,IF(AND(B58<=CIYr,Prem>NonRegDep),Prem-NonRegDep, 0),0) -> 0 | F58: =IF(A58=" "," ",IF(AND(B58=CIYr,L58<(ActualNeed-NeedSelected)),(ActualNeed-NeedSelected-L58)/(1-Tax),0)) ->  | L58: =IF(AND(B58=CIYr,J58>0),MIN(ActualNeed,J58+K58),0) -> 0 | M58: =IF(CIYr=B58, NeedSelected, 0) -> 0 | N58: =IF(A58<=NonRegYrs,IF(B58<=CIYr,MIN(Prem,NonRegDep),0),0) -> 0 | O58: =IF(A58=" "," ",(J58+K58-L58)*NonRegGrowth) ->  | P58: =IF(A58=" "," ",J58+K58-L58+O58) ->  | Q58: =IF(A58=" "," ",H58+P58) -> 
E59: 0 | L59: 0 | M59: 0 | N59: 0
E60: 0 | L60: 0 | M60: 0 | N60: 0
E61: 0 | L61: 0 | M61: 0 | N61: 0
E62: 0 | L62: 0 | M62: 0 | N62: 0
E63: 0 | L63: 0 | M63: 0 | N63: 0
E64: 0 | L64: 0 | M64: 0 | N64: 0
E65: 0 | L65: 0 | M65: 0 | N65: 0
E66: 0 | L66: 0 | M66: 0 | N66: 0
E67: 0 | L67: 0 | M67: 0 | N67: 0
E68: 0 | L68: 0 | M68: 0 | N68: 0
E69: 0 | L69: =IF(AND(B69=CIYr,J69>0),MIN(ActualNeed,J69+K69),0) -> 0 | M69: 0 | N69: 0
A70: =IF(A69=" "," ",IF(B69+1>IllustrateToAge," ",A69+1)) ->  | C70: =IF(A70=" "," ",H69) ->  | D70: =IF(A70=" "," ",IF(B70=CIYr,0,IF(A70<=Yrs,Dep,0))) ->  | E70: 0 | G70: =IF(A70=" "," ",IF(C70+D70-E70-F70<=0,0,(C70+D70-E70-F70)*Growth)) ->  | K70: =IF(A70=" "," ",IF(B70=CIYr,0,IF(A70<=NonRegYrs,NonRegDep,0))) ->  | L70: =IF(AND(B70=CIYr,J70>0),MIN(ActualNeed,J70+K70),0) -> 0 | M70: 0 | N70: 0 | O70: =IF(A70=" "," ",(J70+K70-L70)*NonRegGrowth) -> 

Sheet Tables (hidden)
C1: =IF('Data Entry'!B36="English",TEXT((VLOOKUP(CIYr,B4:F56,2)),"$###,###,##0"),TEXT((VLOOKUP(CIYr,B4:F56,2)),"### ### ##0_-$")) -> $607,151 | D1: =IF('Data Entry'!B36="English",IF(Tables!N3-Tables!M3>0,TEXT(Tables!N3-Tables!M3,"$###,###,##0")&" more",TEXT((-Tables!N3+Tables!M3),"$###,###,##0")&" less"),IF(Tables!N3-Tables!M3>0,TEXT(Tables!N3-Tables!M3,"### ### ##0_-$")&" de plus",TEXT((-Tables!N3+Tables!M3),"### ### ##0_-$")&" de moins")) -> $667,696 less | E1: =IF('Data Entry'!B36="English",IF((Tables!O3-Tables!N3)>0,TEXT((Tables!O3-Tables!N3),"$###,###,##0")&" more",TEXT((-Tables!O3+Tables!N3),"$###,###,##0")&" less"),IF((Tables!O3-Tables!N3)>0,TEXT((Tables!O3-Tables!N3),"### ### ##0_-$")&" de plus",TEXT((-Tables!O3+Tables!N3),"### ### ##0_-$")&" de moins")) -> $629,821 more | F1: =IF('Data Entry'!B36="English",IF(Tables!O3-Tables!M3>0,TEXT(Tables!O3-Tables!M3,"$###,###,##0")&" more",TEXT((-Tables!O3+Tables!M3),"$###,###,##0")&" less"),IF(Tables!O3-Tables!M3>0,TEXT(Tables!O3-Tables!M3,"### ### ##0_-$")&" de plus",TEXT((-Tables!O3+Tables!M3),"### ### ##0_-$")&" de moins")) -> $37,875 less | H1: =IF('Data Entry'!B36="English",TEXT(Growth,"#0.00%"),SUBSTITUTE(TEXT(Growth,"#0.00%"),".",",")) -> 4.00% | I1: =IF('Data Entry'!B36="English",TEXT(I3,"$###,###,###"),TEXT(I3,"### ### ##0_-$")) -> $200,000 | J1: =IF('Data Entry'!B36="English",TEXT(CINeed,"$###,###,###"),TEXT(CINeed,"### ### ##0_-$")) -> $250,000 | L1: =SUM(_xlfn.ANCHORARRAY(M1)) -> 0 | M1: =IF(M2:P2<=0,1,0) -> 0 | N1: 0 | O1: 0 | P1: 0 | R1: =IF('Data Entry'!B36="English",IF((VLOOKUP(CIYr,S4:AB56,2))>=0,TEXT((VLOOKUP(CIYr,S4:AB56,2)),"$###,###,##0")&" "&T3,""),IF((VLOOKUP(CIYr,S4:AB56,2))>=0,TEXT((VLOOKUP(CIYr,S4:AB56,2)),"### ### ##0_-$")&" "&T3,"")) -> $520,803 registered assets | S1: =IF('Data Entry'!B36="English",IF((VLOOKUP(CIYr,S4:AB56,3))>=0,TEXT((VLOOKUP(CIYr,S4:AB56,3)),"$###,###,##0")&" "&U3,""),IF((VLOOKUP(CIYr,S4:AB56,3))>=0,TEXT((VLOOKUP(CIYr,S4:AB56,3)),"### ### ##0_-$")&" "&U3,"")) -> $86,348 non-registered assets | T1: =IF('Data Entry'!B36="English",IF((VLOOKUP(IllustrateToAge,S4:AB56,2))>=0,TEXT((VLOOKUP(IllustrateToAge,S4:AB56,2)),"$###,###,##0")&" "&T3,""),IF((VLOOKUP(IllustrateToAge,S4:AB56,2))>=0,TEXT((VLOOKUP(IllustrateToAge,S4:AB56,2)),"### ### ##0_-$")&" "&T3,"")) -> $1,131,545 registered assets | U1: =IF('Data Entry'!B36="English",IF((VLOOKUP(IllustrateToAge,S4:AB56,3))>=0,TEXT((VLOOKUP(IllustrateToAge,S4:AB56,3)),"$###,###,##0")&" "&U3,""),IF((VLOOKUP(IllustrateToAge,S4:AB56,3))>=0,TEXT((VLOOKUP(IllustrateToAge,S4:AB56,3)),"### ### ##0_-$")&" "&U3,"")) -> $151,700 non-registered assets | V1: =IF('Data Entry'!B36="English",IF((VLOOKUP(IllustrateToAge,S4:AB56,4))>=0,TEXT((VLOOKUP(IllustrateToAge,S4:AB56,4)),"$###,###,##0")&" "&V3,""),IF((VLOOKUP(IllustrateToAge,S4:AB56,4))>=0,TEXT((VLOOKUP(IllustrateToAge,S4:AB56,4)),"### ### ##0_-$")&" "&V3,"")) -> $594,049 registered assets | W1: =IF('Data Entry'!B36="English",IF((VLOOKUP(IllustrateToAge,S4:AB56,5))>=0,TEXT((VLOOKUP(IllustrateToAge,S4:AB56,5)),"$###,###,##0")&" "&W3,""),IF((VLOOKUP(IllustrateToAge,S4:AB56,5))>=0,TEXT((VLOOKUP(IllustrateToAge,S4:AB56,5)),"### ### ##0_-$")&" "&W3,"")) -> $21,500 non-registered assets | X1: =IF('Data Entry'!B36="English",IF((VLOOKUP(IllustrateToAge,S4:AB56,6))>=0,TEXT((VLOOKUP(IllustrateToAge,S4:AB56,6)),"$###,###,##0")&" "&X3,""),IF((VLOOKUP(IllustrateToAge,S4:AB56,6))>=0,TEXT((VLOOKUP(IllustrateToAge,S4:AB56,6)),"### ### ##0_-$")&" "&X3,"")) -> $1,096,483 registered assets | Y1: =IF('Data Entry'!B36="English",IF((VLOOKUP(IllustrateToAge,S4:AB56,7))>=0,TEXT((VLOOKUP(IllustrateToAge,S4:AB56,7)),"$###,###,##0")&" "&Y3,""),IF((VLOOKUP(IllustrateToAge,S4:AB56,7))>=0,TEXT((VLOOKUP(IllustrateToAge,S4:AB56,7)),"### ### ##0_-$")&" "&Y3,"")) -> $148,887 non-registered assets | Z1: =IF('Data Entry'!B36="English",IF((VLOOKUP(IllustrateToAge,S4:AB56,8))>=0,TEXT((VLOOKUP(IllustrateToAge,S4:AB56,8)),"$###,###,##0")&" "&Z3,""),IF((VLOOKUP(IllustrateToAge,S4:AB56,8))>=0,TEXT((VLOOKUP(IllustrateToAge,S4:AB56,8)),"### ### ##0_-$")&" "&Z3,"")) -> $1,131,545 registered assets | AA1: =IF('Data Entry'!B36="English",IF((VLOOKUP(IllustrateToAge,S4:AB56,9))>=0,TEXT((VLOOKUP(IllustrateToAge,S4:AB56,9)),"$###,###,##0")&" "&AA3,""),IF((VLOOKUP(IllustrateToAge,S4:AB56,9))>=0,TEXT((VLOOKUP(IllustrateToAge,S4:AB56,9)),"### ### ##0_-$")&" "&AA3,"")) -> $151,700 non-registered assets | AB1: =IF('Data Entry'!B36="English",IF(ROPYrStr<>"Not included",TEXT((VLOOKUP(IllustrateToAge,S4:AB56,10)),"$###,###,##0")&" "&AB3,""),IF(ROPYrStr<>"Not included",AB3&" de"&TEXT((VLOOKUP(IllustrateToAge,S4:AB56,10)),"### ### ##0_-$"),"")) -> $0 ROPC/E value
B2: ="Age "&IllustrateToAge -> Age 71 | C2: =IF('Data Entry'!B36="English",TEXT((VLOOKUP(IllustrateToAge,B4:F56,2)),"$###,###,##0"),TEXT((VLOOKUP(IllustrateToAge,B4:F56,2)),"### ### ##0_-$")) -> $1,283,245 | D2: =IF('Data Entry'!B36="English",TEXT((VLOOKUP(IllustrateToAge,B4:F56,3)),"$###,###,##0"),TEXT((VLOOKUP(IllustrateToAge,B4:F56,3)),"### ### ##0_-$")) -> $615,549 | E2: =IF('Data Entry'!B36="English",TEXT((VLOOKUP(71,B4:F56,4)),"$###,###,##0"),TEXT((VLOOKUP(71,B4:F56,4)),"### ### ##0_-$")) -> $1,245,370 | F2: =IF('Data Entry'!B36="English",TEXT((VLOOKUP(71,B4:F56,5)),"$###,###,##0"),TEXT((VLOOKUP(71,B4:F56,5)),"### ### ##0_-$")) -> $1,283,245 | H2: =IF('Data Entry'!B36="English",TEXT(NonRegGrowthBeforeTax,"#0.00%"),SUBSTITUTE(TEXT(NonRegGrowthBeforeTax,"#0.00%"),".",",")) -> 4.00% | I2: =IF('Data Entry'!B36="English",TEXT(I4,"$###,###,###"),TEXT(I4,"### ### ##0_-$")) -> $282,416 | L2: ="Age "&CIYr -> Age 55 | M2: =VLOOKUP(CIYr,B4:F56,2) -> 607150.9785 | N2: =VLOOKUP(CIYr,B4:F56,3) -> 233829.5639 | O2: =VLOOKUP(CIYr,B4:F56,4) -> 586565.5495 | P2: =VLOOKUP(71,B4:F56,5) -> 1283244.828 | T2: Scenario A - No CII Insurance & Don't get a critical illness | V2: Scenario B - No CII Insurance & Get a critical illness | X2: Scenario C - Have CII Insurance & Get a critical illness | Z2: ="Scenario D - Have CII Insurance & Don't get a critical illness"&IF(ROPYrStr<>"Not include"," & Receive ROPC/E","") -> Scenario D - Have CII Insurance & Don't get a critical illness & Receive ROPC/E
B3: Age | C3: =IF('Data Entry'!B36="English","Scenario A - No CII Insurance & Don't get a critical illness","Scénario A – Sans AMG ni maladie grave") -> Scenario A - No CII Insurance & Don't get a critical illness | D3: =IF('Data Entry'!B36="English","Scenario B - No CII Insurance & Get a critical illness","Scénario B – Sans AMG, mais avec une maladie grave") -> Scenario B - No CII Insurance & Get a critical illness | E3: =IF('Data Entry'!B36="English","Scenario C - Have CII Insurance & Get a critical illness","Scénario C – Avec AMG et une maladie grave") -> Scenario C - Have CII Insurance & Get a critical illness | F3: =IF('Data Entry'!B36="English","Scenario D - Have CII Insurance & Don't get a critical illness"&IF(ROPYrStr<>"Not included"," & Receive ROPC/E",""),"Scénario D – Avec AMG, sans maladie grave"&IF(ROPYrStr<>"Not included"," et versement du RDPR/E","")) -> Scenario D - Have CII Insurance & Don't get a critical illness & Receive ROPC/E | H3: Total need | I3: =HlthCare+HomeCare+ROUND('CI Need'!D5,0) -> 200000 | L3: ="Age "&IllustrateToAge -> Age 71 | M3: =VLOOKUP(IllustrateToAge,B4:F56,2) -> 1283244.828 | N3: =VLOOKUP(IllustrateToAge,B4:F56,3) -> 615549.2083 | O3: =VLOOKUP(IllustrateToAge,B4:F56,4) -> 1245369.834 | P3: =VLOOKUP(IllustrateToAge,B4:F56,5) -> 1283244.828 | S3: Age | T3: =IF('Data Entry'!B36="English","registered assets","d’actifs enregistrés") -> registered assets | U3: =IF('Data Entry'!B36="English","non-registered assets","d’actifs non enregistrés") -> non-registered assets | V3: =IF('Data Entry'!B36="English","registered assets","d’actifs enregistrés") -> registered assets | W3: =IF('Data Entry'!B36="English","non-registered assets","d’actifs non enregistrés") -> non-registered assets | X3: =IF('Data Entry'!B36="English","registered assets","d’actifs enregistrés") -> registered assets | Y3: =IF('Data Entry'!B36="English","non-registered assets","d’actifs non enregistrés") -> non-registered assets | Z3: =IF('Data Entry'!B36="English","registered assets","d’actifs enregistrés") -> registered assets | AA3: =IF('Data Entry'!B36="English","non-registered assets","d’actifs non enregistrés") -> non-registered assets | AB3: =IF('Data Entry'!B36="English","ROPC/E value","RDPR/E") -> ROPC/E value
A4: 1 | B4: ='No Ins No CI'!B5 -> 46 | C4: ='No Ins No CI'!O5 -> 270838 | D4: ='No Ins Yes CI'!O5 -> 270838 | E4: ='Yes Ins Yes CI'!Q5 -> 270838 | F4: ='Yes Ins No CI'!W5 -> 270838 | I4: =ROUND(VLOOKUP(CIYr,CINeedTable,6),0)+ROUND(VLOOKUP(CIYr,CINeedTable,7),0)+ROUND(VLOOKUP(CIYr,CINeedTable,4),0) -> 282416 | L4: ="ROPC/E at age "&IllustrateToAge -> ROPC/E at age 71 | M4: =VLOOKUP(IllustrateToAge,S4:AB56,10) -> 0 | R4: 1 | S4: ='No Ins No CI'!B5 -> 46 | T4: ='No Ins No CI'!H5 -> 226720 | U4: ='No Ins No CI'!N5 -> 44118 | V4: ='No Ins Yes CI'!H5 -> 226720 | W4: ='No Ins Yes CI'!N5 -> 44118 | X4: ='Yes Ins Yes CI'!H5 -> 226720 | Y4: ='Yes Ins Yes CI'!P5 -> 44118 | Z4: ='Yes Ins No CI'!H5 -> 226720 | AA4: ='Yes Ins No CI'!P5 -> 44118 | AB4: ='Yes Ins No CI'!U5 -> 0
A5: 2 | B5: ='No Ins No CI'!B6 -> 47 | C5: ='No Ins No CI'!O6 -> 302851.868 | D5: ='No Ins Yes CI'!O6 -> 302851.868 | E5: ='Yes Ins Yes CI'!Q6 -> 302851.868 | F5: ='Yes Ins No CI'!W6 -> 302851.868 | R5: 2 | S5: ='No Ins No CI'!B6 -> 47 | T5: ='No Ins No CI'!H6 -> 254508.8 | U5: ='No Ins No CI'!N6 -> 48343.068 | V5: ='No Ins Yes CI'!H6 -> 254508.8 | W5: ='No Ins Yes CI'!N6 -> 48343.068 | X5: ='Yes Ins Yes CI'!H6 -> 254508.8 | Y5: ='Yes Ins Yes CI'!P6 -> 48343.068 | Z5: ='Yes Ins No CI'!H6 -> 254508.8 | AA5: ='Yes Ins No CI'!P6 -> 48343.068 | AB5: ='Yes Ins No CI'!U6 -> 0
A6: 3 | B6: ='No Ins No CI'!B7 -> 48 | C6: ='No Ins No CI'!O7 -> 336087.1398 | D6: ='No Ins Yes CI'!O7 -> 336087.1398 | E6: ='Yes Ins Yes CI'!Q7 -> 336087.1398 | F6: ='Yes Ins No CI'!W7 -> 336087.1398 | H6: =IF('Data Entry'!B36="English","Projected value of assets"," Valeur des actifs") -> Projected value of assets | R6: 3 | S6: ='No Ins No CI'!B7 -> 48 | T6: ='No Ins No CI'!H7 -> 283409.152 | U6: ='No Ins No CI'!N7 -> 52677.98777 | V6: ='No Ins Yes CI'!H7 -> 283409.152 | W6: ='No Ins Yes CI'!N7 -> 52677.98777 | X6: ='Yes Ins Yes CI'!H7 -> 283409.152 | Y6: ='Yes Ins Yes CI'!P7 -> 52677.98777 | Z6: ='Yes Ins No CI'!H7 -> 283409.152 | AA6: ='Yes Ins No CI'!P7 -> 52677.98777 | AB6: ='Yes Ins No CI'!U7 -> 0
A7: 4 | B7: ='No Ins No CI'!B8 -> 49 | C7: ='No Ins No CI'!O8 -> 370591.1335 | D7: ='No Ins Yes CI'!O8 -> 370591.1335 | E7: ='Yes Ins Yes CI'!Q8 -> 370591.1335 | F7: ='Yes Ins No CI'!W8 -> 370591.1335 | H7: =IF('Data Entry'!B36="English","Age","Âge") -> Age | R7: 4 | S7: ='No Ins No CI'!B8 -> 49 | T7: ='No Ins No CI'!H8 -> 313465.5181 | U7: ='No Ins No CI'!N8 -> 57125.61545 | V7: ='No Ins Yes CI'!H8 -> 313465.5181 | W7: ='No Ins Yes CI'!N8 -> 57125.61545 | X7: ='Yes Ins Yes CI'!H8 -> 313465.5181 | Y7: ='Yes Ins Yes CI'!P8 -> 57125.61545 | Z7: ='Yes Ins No CI'!H8 -> 313465.5181 | AA7: ='Yes Ins No CI'!P8 -> 57125.61545 | AB7: ='Yes Ins No CI'!U8 -> 0
A8: 5 | B8: ='No Ins No CI'!B9 -> 50 | C8: ='No Ins No CI'!O9 -> 406413.0203 | D8: ='No Ins Yes CI'!O9 -> 406413.0203 | E8: ='Yes Ins Yes CI'!Q9 -> 406413.0203 | F8: ='Yes Ins No CI'!W9 -> 406413.0203 | R8: 5 | S8: ='No Ins No CI'!B9 -> 50 | T8: ='No Ins No CI'!H9 -> 344724.1388 | U8: ='No Ins No CI'!N9 -> 61688.88145 | V8: ='No Ins Yes CI'!H9 -> 344724.1388 | W8: ='No Ins Yes CI'!N9 -> 61688.88145 | X8: ='Yes Ins Yes CI'!H9 -> 344724.1388 | Y8: ='Yes Ins Yes CI'!P9 -> 61688.88145 | Z8: ='Yes Ins No CI'!H9 -> 344724.1388 | AA8: ='Yes Ins No CI'!P9 -> 61688.88145 | AB8: ='Yes Ins No CI'!U9 -> 0
A9: 6 | B9: ='No Ins No CI'!B10 -> 51 | C9: ='No Ins No CI'!O10 -> 443603.8967 | D9: ='No Ins Yes CI'!O10 -> 443603.8967 | E9: ='Yes Ins Yes CI'!Q10 -> 443603.8967 | F9: ='Yes Ins No CI'!W10 -> 443603.8967 | R9: 6 | S9: ='No Ins No CI'!B10 -> 51 | T9: ='No Ins No CI'!H10 -> 377233.1044 | U9: ='No Ins No CI'!N10 -> 66370.79237 | V9: ='No Ins Yes CI'!H10 -> 377233.1044 | W9: ='No Ins Yes CI'!N10 -> 66370.79237 | X9: ='Yes Ins Yes CI'!H10 -> 377233.1044 | Y9: ='Yes Ins Yes CI'!P10 -> 66370.79237 | Z9: ='Yes Ins No CI'!H10 -> 377233.1044 | AA9: ='Yes Ins No CI'!P10 -> 66370.79237 | AB9: ='Yes Ins No CI'!U10 -> 0
A10: 7 | B10: ='No Ins No CI'!B11 -> 52 | C10: ='No Ins No CI'!O11 -> 482216.8615 | D10: ='No Ins Yes CI'!O11 -> 482216.8615 | E10: ='Yes Ins Yes CI'!Q11 -> 482216.8615 | F10: ='Yes Ins No CI'!W11 -> 482216.8615 | R10: 7 | S10: ='No Ins No CI'!B11 -> 52 | T10: ='No Ins No CI'!H11 -> 411042.4285 | U10: ='No Ins No CI'!N11 -> 71174.43297 | V10: ='No Ins Yes CI'!H11 -> 411042.4285 | W10: ='No Ins Yes CI'!N11 -> 71174.43297 | X10: ='Yes Ins Yes CI'!H11 -> 411042.4285 | Y10: ='Yes Ins Yes CI'!P11 -> 71174.43297 | Z10: ='Yes Ins No CI'!H11 -> 411042.4285 | AA10: ='Yes Ins No CI'!P11 -> 71174.43297 | AB10: ='Yes Ins No CI'!U11 -> 0
A11: 8 | B11: ='No Ins No CI'!B12 -> 53 | C11: ='No Ins No CI'!O12 -> 522307.0939 | D11: ='No Ins Yes CI'!O12 -> 522307.0939 | E11: ='Yes Ins Yes CI'!Q12 -> 522307.0939 | F11: ='Yes Ins No CI'!W12 -> 522307.0939 | R11: 8 | S11: ='No Ins No CI'!B12 -> 53 | T11: ='No Ins No CI'!H12 -> 446204.1257 | U11: ='No Ins No CI'!N12 -> 76102.96823 | V11: ='No Ins Yes CI'!H12 -> 446204.1257 | W11: ='No Ins Yes CI'!N12 -> 76102.96823 | X11: ='Yes Ins Yes CI'!H12 -> 446204.1257 | Y11: ='Yes Ins Yes CI'!P12 -> 76102.96823 | Z11: ='Yes Ins No CI'!H12 -> 446204.1257 | AA11: ='Yes Ins No CI'!P12 -> 76102.96823 | AB11: ='Yes Ins No CI'!U12 -> 0
A12: 9 | B12: ='No Ins No CI'!B13 -> 54 | C12: ='No Ins No CI'!O13 -> 563931.9361 | D12: ='No Ins Yes CI'!O13 -> 563931.9361 | E12: ='Yes Ins Yes CI'!Q13 -> 563931.9361 | F12: ='Yes Ins No CI'!W13 -> 563931.9361 | R12: 9 | S12: ='No Ins No CI'!B13 -> 54 | T12: ='No Ins No CI'!H13 -> 482772.2907 | U12: ='No Ins No CI'!N13 -> 81159.6454 | V12: ='No Ins Yes CI'!H13 -> 482772.2907 | W12: ='No Ins Yes CI'!N13 -> 81159.6454 | X12: ='Yes Ins Yes CI'!H13 -> 482772.2907 | Y12: ='Yes Ins Yes CI'!P13 -> 81159.6454 | Z12: ='Yes Ins No CI'!H13 -> 482772.2907 | AA12: ='Yes Ins No CI'!P13 -> 81159.6454 | AB12: ='Yes Ins No CI'!U13 -> 0
A13: 10 | B13: ='No Ins No CI'!B14 -> 55 | C13: ='No Ins No CI'!O14 -> 607150.9785 | D13: ='No Ins Yes CI'!O14 -> 233829.5639 | E13: ='Yes Ins Yes CI'!Q14 -> 586565.5495 | F13: ='Yes Ins No CI'!W14 -> 607150.9785 | R13: 10 | S13: ='No Ins No CI'!B14 -> 55 | T13: ='No Ins No CI'!H14 -> 520803.1823 | U13: ='No Ins No CI'!N14 -> 86347.79618 | V13: ='No Ins Yes CI'!H14 -> 233829.5639 | W13: ='No Ins Yes CI'!N14 -> 0 | X13: ='Yes Ins Yes CI'!H14 -> 502083.1823 | Y13: ='Yes Ins Yes CI'!P14 -> 84482.36716 | Z13: ='Yes Ins No CI'!H14 -> 520803.1823 | AA13: ='Yes Ins No CI'!P14 -> 86347.79618 | AB13: ='Yes Ins No CI'!U14 -> 0
A14: 11 | B14: ='No Ins No CI'!B15 -> 56 | C14: ='No Ins No CI'!O15 -> 652026.1485 | D14: ='No Ins Yes CI'!O15 -> 264980.7464 | E14: ='Yes Ins Yes CI'!Q15 -> 630643.4183 | F14: ='Yes Ins No CI'!W15 -> 652026.1485 | R14: 11 | S14: ='No Ins No CI'!B15 -> 56 | T14: ='No Ins No CI'!H15 -> 560355.3096 | U14: ='No Ins No CI'!N15 -> 91670.83888 | V14: ='No Ins Yes CI'!H15 -> 261902.7464 | W14: ='No Ins Yes CI'!N15 -> 3078 | X14: ='Yes Ins Yes CI'!H15 -> 540886.5096 | Y14: ='Yes Ins Yes CI'!P15 -> 89756.90871 | Z14: ='Yes Ins No CI'!H15 -> 560355.3096 | AA14: ='Yes Ins No CI'!P15 -> 91670.83888 | AB14: ='Yes Ins No CI'!U15 -> 0
A15: 12 | B15: ='No Ins No CI'!B16 -> 57 | C15: ='No Ins No CI'!O16 -> 698621.8027 | D15: ='No Ins Yes CI'!O16 -> 297334.8843 | E15: ='Yes Ins Yes CI'!Q16 -> 676410.5583 | F15: ='Yes Ins No CI'!W16 -> 698621.8027 | R15: 12 | S15: ='No Ins No CI'!B16 -> 57 | T15: ='No Ins No CI'!H16 -> 601489.522 | U15: ='No Ins No CI'!N16 -> 97132.28069 | V15: ='No Ins Yes CI'!H16 -> 291098.8563 | W15: ='No Ins Yes CI'!N16 -> 6236.028 | X15: ='Yes Ins Yes CI'!H16 -> 581241.97 | Y15: ='Yes Ins Yes CI'!P16 -> 95168.58833 | Z15: ='Yes Ins No CI'!H16 -> 601489.522 | AA15: ='Yes Ins No CI'!P16 -> 97132.28069 | AB15: ='Yes Ins No CI'!U16 -> 0
A16: 13 | B16: ='No Ins No CI'!B17 -> 58 | C16: ='No Ins No CI'!O17 -> 747004.8229 | D16: ='No Ins Yes CI'!O17 -> 330938.9753 | E16: ='Yes Ins Yes CI'!Q17 -> 723932.6204 | F16: ='Yes Ins No CI'!W17 -> 747004.8229 | R16: 13 | S16: ='No Ins No CI'!B17 -> 58 | T16: ='No Ins No CI'!H17 -> 644269.1029 | U16: ='No Ins No CI'!N17 -> 102735.72 | V16: ='No Ins Yes CI'!H17 -> 321462.8105 | W16: ='No Ins Yes CI'!N17 -> 9476.164728 | X16: ='Yes Ins Yes CI'!H17 -> 623211.6488 | Y16: ='Yes Ins Yes CI'!P17 -> 100720.9716 | Z16: ='Yes Ins No CI'!H17 -> 644269.1029 | AA16: ='Yes Ins No CI'!P17 -> 102735.72 | AB16: ='Yes Ins No CI'!U17 -> 0
A17: 14 | B17: ='No Ins No CI'!B18 -> 59 | C17: ='No Ins No CI'!O18 -> 797244.7157 | D17: ='No Ins Yes CI'!O18 -> 365841.868 | E17: ='Yes Ins Yes CI'!Q18 -> 773277.8316 | F17: ='Yes Ins No CI'!W18 -> 797244.7157 | R17: 14 | S17: ='No Ins No CI'!B18 -> 59 | T17: ='No Ins No CI'!H18 -> 688759.867 | U17: ='No Ins No CI'!N18 -> 108484.8487 | V17: ='No Ins Yes CI'!H18 -> 353041.3229 | W17: ='No Ins Yes CI'!N18 -> 12800.54501 | X17: ='Yes Ins Yes CI'!H18 -> 666860.1148 | Y17: ='Yes Ins Yes CI'!P18 -> 106417.7169 | Z17: ='Yes Ins No CI'!H18 -> 688759.867 | AA17: ='Yes Ins No CI'!P18 -> 108484.8487 | AB17: ='Yes Ins No CI'!U18 -> 0
A18: 15 | B18: ='No Ins No CI'!B19 -> 60 | C18: ='No Ins No CI'!O19 -> 849413.7165 | D18: ='No Ins Yes CI'!O19 -> 402094.335 | E18: ='Yes Ins Yes CI'!Q19 -> 824517.0969 | F18: ='Yes Ins No CI'!W19 -> 849413.7165 | R18: 15 | S18: ='No Ins No CI'!B19 -> 60 | T18: ='No Ins No CI'!H19 -> 735030.2617 | U18: ='No Ins No CI'!N19 -> 114383.4548 | V18: ='No Ins Yes CI'!H19 -> 385882.9759 | W18: ='No Ins Yes CI'!N19 -> 16211.35918 | X18: ='Yes Ins Yes CI'!H19 -> 712254.5193 | Y18: ='Yes Ins Yes CI'!P19 -> 112262.5775 | Z18: ='Yes Ins No CI'!H19 -> 735030.2617 | AA18: ='Yes Ins No CI'!P19 -> 114383.4548 | AB18: ='Yes Ins No CI'!U19 -> 0
A19: 16 | B19: ='No Ins No CI'!B20 -> 61 | C19: ='No Ins No CI'!O20 -> 881788.8967 | D19: ='No Ins Yes CI'!O20 -> 417951.1494 | E19: ='Yes Ins Yes CI'!Q20 -> 855926.1047 | F19: ='Yes Ins No CI'!W20 -> 881788.8967 | R19: 16 | S19: ='No Ins No CI'!B20 -> 61 | T19: ='No Ins No CI'!H20 -> 764431.4721 | U19: ='No Ins No CI'!N20 -> 117357.4246 | V19: ='No Ins Yes CI'!H20 -> 401318.2949 | W19: ='No Ins Yes CI'!N20 -> 16632.85452 | X19: ='Yes Ins Yes CI'!H20 -> 740744.7001 | Y19: ='Yes Ins Yes CI'!P20 -> 115181.4045 | Z19: ='Yes Ins No CI'!H20 -> 764431.4721 | AA19: ='Yes Ins No CI'!P20 -> 117357.4246 | AB19: ='Yes Ins No CI'!U20 -> 0
A20: 17 | B20: ='No Ins No CI'!B21 -> 62 | C20: ='No Ins No CI'!O21 -> 915417.4487 | D20: ='No Ins Yes CI'!O21 -> 434436.3354 | E20: ='Yes Ins Yes CI'!Q21 -> 888550.6092 | F20: ='Yes Ins No CI'!W21 -> 915417.4487 | R20: 17 | S20: ='No Ins No CI'!B21 -> 62 | T20: ='No Ins No CI'!H21 -> 795008.731 | U20: ='No Ins No CI'!N21 -> 120408.7176 | V20: ='No Ins Yes CI'!H21 -> 417371.0267 | W20: ='No Ins Yes CI'!N21 -> 17065.30874 | X20: ='Yes Ins Yes CI'!H21 -> 770374.4881 | Y20: ='Yes Ins Yes CI'!P21 -> 118176.1211 | Z20: ='Yes Ins No CI'!H21 -> 795008.731 | AA20: ='Yes Ins No CI'!P21 -> 120408.7176 | AB20: ='Yes Ins No CI'!U21 -> 0
A21: 18 | B21: ='No Ins No CI'!B22 -> 63 | C21: ='No Ins No CI'!O22 -> 950348.4246 | D21: ='No Ins Yes CI'!O22 -> 451574.8745 | E21: ='Yes Ins Yes CI'!Q22 -> 922438.1679 | F21: ='Yes Ins No CI'!W22 -> 950348.4246 | R21: 18 | S21: ='No Ins No CI'!B22 -> 63 | T21: ='No Ins No CI'!H22 -> 826809.0803 | U21: ='No Ins No CI'!N22 -> 123539.3443 | V21: ='No Ins Yes CI'!H22 -> 434065.8678 | W21: ='No Ins Yes CI'!N22 -> 17509.00676 | X21: ='Yes Ins Yes CI'!H22 -> 801189.4676 | Y21: ='Yes Ins Yes CI'!P22 -> 121248.7002 | Z21: ='Yes Ins No CI'!H22 -> 826809.0803 | AA21: ='Yes Ins No CI'!P22 -> 123539.3443 | AB21: ='Yes Ins No CI'!U22 -> 0
A22: 19 | B22: ='No Ins No CI'!B23 -> 64 | C22: ='No Ins No CI'!O23 -> 986632.8107 | D22: ='No Ins Yes CI'!O23 -> 469392.7434 | E22: ='Yes Ins Yes CI'!Q23 -> 957638.2128 | F22: ='Yes Ins No CI'!W23 -> 986632.8107 | R22: 19 | S22: ='No Ins No CI'!B23 -> 64 | T22: ='No Ins No CI'!H23 -> 859881.4435 | U22: ='No Ins No CI'!N23 -> 126751.3673 | V22: ='No Ins Yes CI'!H23 -> 451428.5025 | W22: ='No Ins Yes CI'!N23 -> 17964.24094 | X22: ='Yes Ins Yes CI'!H23 -> 833237.0464 | Y22: ='Yes Ins Yes CI'!P23 -> 124401.1664 | Z22: ='Yes Ins No CI'!H23 -> 859881.4435 | AA22: ='Yes Ins No CI'!P23 -> 126751.3673 | AB22: ='Yes Ins No CI'!U23 -> 0
A23: 20 | B23: ='No Ins No CI'!B24 -> 65 | C23: ='No Ins No CI'!O24 -> 1024323.604 | D23: ='No Ins Yes CI'!O24 -> 487916.9538 | E23: ='Yes Ins Yes CI'!Q24 -> 994202.125 | F23: ='Yes Ins No CI'!W24 -> 1024323.604 | R23: 20 | S23: ='No Ins No CI'!B24 -> 65 | T23: ='No Ins No CI'!H24 -> 894276.7012 | U23: ='No Ins No CI'!N24 -> 130046.9028 | V23: ='No Ins Yes CI'!H24 -> 469485.6426 | W23: ='No Ins Yes CI'!N24 -> 18431.3112 | X23: ='Yes Ins Yes CI'!H24 -> 866566.5282 | Y23: ='Yes Ins Yes CI'!P24 -> 127635.5967 | Z23: ='Yes Ins No CI'!H24 -> 894276.7012 | AA23: ='Yes Ins No CI'!P24 -> 130046.9028 | AB23: ='Yes Ins No CI'!U24 -> 0
A24: 21 | B24: ='No Ins No CI'!B25 -> 66 | C24: ='No Ins No CI'!O25 -> 1063475.892 | D24: ='No Ins Yes CI'!O25 -> 507175.5936 | E24: ='Yes Ins Yes CI'!Q25 -> 1032183.312 | F24: ='Yes Ins No CI'!W25 -> 1063475.892 | R24: 21 | S24: ='No Ins No CI'!B25 -> 66 | T24: ='No Ins No CI'!H25 -> 930047.7693 | U24: ='No Ins No CI'!N25 -> 133428.1223 | V24: ='No Ins Yes CI'!H25 -> 488265.0683 | W24: ='No Ins Yes CI'!N25 -> 18910.5253 | X24: ='Yes Ins Yes CI'!H25 -> 901229.1893 | Y24: ='Yes Ins Yes CI'!P25 -> 130954.1223 | Z24: ='Yes Ins No CI'!H25 -> 930047.7693 | AA24: ='Yes Ins No CI'!P25 -> 133428.1223 | AB24: ='Yes Ins No CI'!U25 -> 0
A25: 22 | B25: ='No Ins No CI'!B26 -> 67 | C25: ='No Ins No CI'!O26 -> 1104146.933 | D25: ='No Ins Yes CI'!O26 -> 527197.87 | E25: ='Yes Ins Yes CI'!Q26 -> 1071637.286 | F25: ='Yes Ins No CI'!W26 -> 1104146.933 | R25: 22 | S25: ='No Ins No CI'!B26 -> 67 | T25: ='No Ins No CI'!H26 -> 967249.68 | U25: ='No Ins No CI'!N26 -> 136897.2535 | V25: ='No Ins Yes CI'!H26 -> 507795.671 | W25: ='No Ins Yes CI'!N26 -> 19402.19895 | X25: ='Yes Ins Yes CI'!H26 -> 937278.3569 | Y25: ='Yes Ins Yes CI'!P26 -> 134358.9294 | Z25: ='Yes Ins No CI'!H26 -> 967249.68 | AA25: ='Yes Ins No CI'!P26 -> 136897.2535 | AB25: ='Yes Ins No CI'!U26 -> 0
A26: 23 | B26: ='No Ins No CI'!B27 -> 68 | C26: ='No Ins No CI'!O27 -> 1146396.249 | D26: ='No Ins Yes CI'!O27 -> 548014.154 | E26: ='Yes Ins Yes CI'!Q27 -> 1112621.753 | F26: ='Yes Ins No CI'!W27 -> 1146396.249 | R26: 23 | S26: ='No Ins No CI'!B27 -> 68 | T26: ='No Ins No CI'!H27 -> 1005939.667 | U26: ='No Ins No CI'!N27 -> 140456.582 | V26: ='No Ins Yes CI'!H27 -> 528107.4978 | W26: ='No Ins Yes CI'!N27 -> 19906.65613 | X26: ='Yes Ins Yes CI'!H27 -> 974769.4912 | Y26: ='Yes Ins Yes CI'!P27 -> 137852.2616 | Z26: ='Yes Ins No CI'!H27 -> 1005939.667 | AA26: ='Yes Ins No CI'!P27 -> 140456.582 | AB26: ='Yes Ins No CI'!U27 -> 0
A27: 24 | B27: ='No Ins No CI'!B28 -> 69 | C27: ='No Ins No CI'!O28 -> 1190285.707 | D27: ='No Ins Yes CI'!O28 -> 569656.0269 | E27: ='Yes Ins Yes CI'!Q28 -> 1155196.691 | F27: ='Yes Ins No CI'!W28 -> 1190285.707 | R27: 24 | S27: ='No Ins No CI'!B28 -> 69 | T27: ='No Ins No CI'!H28 -> 1046177.254 | U27: ='No Ins No CI'!N28 -> 144108.4532 | V27: ='No Ins Yes CI'!H28 -> 549231.7978 | W27: ='No Ins Yes CI'!N28 -> 20424.22919 | X27: ='Yes Ins Yes CI'!H28 -> 1013760.271 | Y27: ='Yes Ins Yes CI'!P28 -> 141436.4204 | Z27: ='Yes Ins No CI'!H28 -> 1046177.254 | AA27: ='Yes Ins No CI'!P28 -> 144108.4532 | AB27: ='Yes Ins No CI'!U28 -> 0
A28: 25 | B28: ='No Ins No CI'!B29 -> 70 | C28: ='No Ins No CI'!O29 -> 1235879.617 | D28: ='No Ins Yes CI'!O29 -> 592156.3288 | E28: ='Yes Ins Yes CI'!Q29 -> 1199424.449 | F28: ='Yes Ins No CI'!W29 -> 1235879.617 | R28: 25 | S28: ='No Ins No CI'!B29 -> 70 | T28: ='No Ins No CI'!H29 -> 1088024.344 | U28: ='No Ins No CI'!N29 -> 147855.273 | V28: ='No Ins Yes CI'!H29 -> 571201.0697 | W28: ='No Ins Yes CI'!N29 -> 20955.25914 | X28: ='Yes Ins Yes CI'!H29 -> 1054310.682 | Y28: ='Yes Ins Yes CI'!P29 -> 145113.7673 | Z28: ='Yes Ins No CI'!H29 -> 1088024.344 | AA28: ='Yes Ins No CI'!P29 -> 147855.273 | AB28: ='Yes Ins No CI'!U29 -> 0
A29: 26 | B29: ='No Ins No CI'!B30 -> 71 | C29: ='No Ins No CI'!O30 -> 1283244.828 | D29: ='No Ins Yes CI'!O30 -> 615549.2083 | E29: ='Yes Ins Yes CI'!Q30 -> 1245369.834 | F29: ='Yes Ins No CI'!W30 -> 1283244.828 | R29: 26 | S29: ='No Ins No CI'!B30 -> 71 | T29: ='No Ins No CI'!H30 -> 1131545.318 | U29: ='No Ins No CI'!N30 -> 151699.5101 | V29: ='No Ins Yes CI'!H30 -> 594049.1125 | W29: ='No Ins Yes CI'!N30 -> 21500.09588 | X29: ='Yes Ins Yes CI'!H30 -> 1096483.109 | Y29: ='Yes Ins Yes CI'!P30 -> 148886.7253 | Z29: ='Yes Ins No CI'!H30 -> 1131545.318 | AA29: ='Yes Ins No CI'!P30 -> 151699.5101 | AB29: ='Yes Ins No CI'!U30 -> 0
A30: 27 | B30: ='No Ins No CI'!B31 ->  | C30: ='No Ins No CI'!O31 ->  | D30: ='No Ins Yes CI'!O31 ->  | E30: ='Yes Ins Yes CI'!Q31 ->  | F30: ='Yes Ins No CI'!W31 ->  | R30: 27 | S30: ='No Ins No CI'!B31 ->  | T30: ='No Ins No CI'!H31 ->  | U30: ='No Ins No CI'!N31 ->  | V30: ='No Ins Yes CI'!H31 ->  | W30: ='No Ins Yes CI'!N31 ->  | X30: ='Yes Ins Yes CI'!H31 ->  | Y30: ='Yes Ins Yes CI'!P31 ->  | Z30: ='Yes Ins No CI'!H31 ->  | AA30: ='Yes Ins No CI'!P31 ->  | AB30: ='Yes Ins No CI'!U31 -> 
A31: 28 | B31: ='No Ins No CI'!B32 ->  | C31: ='No Ins No CI'!O32 ->  | D31: ='No Ins Yes CI'!O32 ->  | E31: ='Yes Ins Yes CI'!Q32 ->  | F31: ='Yes Ins No CI'!W32 ->  | R31: 28 | S31: ='No Ins No CI'!B32 ->  | T31: ='No Ins No CI'!H32 ->  | U31: ='No Ins No CI'!N32 ->  | V31: ='No Ins Yes CI'!H32 ->  | W31: ='No Ins Yes CI'!N32 ->  | X31: ='Yes Ins Yes CI'!H32 ->  | Y31: ='Yes Ins Yes CI'!P32 ->  | Z31: ='Yes Ins No CI'!H32 ->  | AA31: ='Yes Ins No CI'!P32 ->  | AB31: ='Yes Ins No CI'!U32 -> 
A32: 29 | B32: ='No Ins No CI'!B33 ->  | C32: ='No Ins No CI'!O33 ->  | D32: ='No Ins Yes CI'!O33 ->  | E32: ='Yes Ins Yes CI'!Q33 ->  | F32: ='Yes Ins No CI'!W33 ->  | R32: 29 | S32: ='No Ins No CI'!B33 ->  | T32: ='No Ins No CI'!H33 ->  | U32: ='No Ins No CI'!N33 ->  | V32: ='No Ins Yes CI'!H33 ->  | W32: ='No Ins Yes CI'!N33 ->  | X32: ='Yes Ins Yes CI'!H33 ->  | Y32: ='Yes Ins Yes CI'!P33 ->  | Z32: ='Yes Ins No CI'!H33 ->  | AA32: ='Yes Ins No CI'!P33 ->  | AB32: ='Yes Ins No CI'!U33 -> 
A33: 30 | B33: ='No Ins No CI'!B34 ->  | C33: ='No Ins No CI'!O34 ->  | D33: ='No Ins Yes CI'!O34 ->  | E33: ='Yes Ins Yes CI'!Q34 ->  | F33: ='Yes Ins No CI'!W34 ->  | R33: 30 | S33: ='No Ins No CI'!B34 ->  | T33: ='No Ins No CI'!H34 ->  | U33: ='No Ins No CI'!N34 ->  | V33: ='No Ins Yes CI'!H34 ->  | W33: ='No Ins Yes CI'!N34 ->  | X33: ='Yes Ins Yes CI'!H34 ->  | Y33: ='Yes Ins Yes CI'!P34 ->  | Z33: ='Yes Ins No CI'!H34 ->  | AA33: ='Yes Ins No CI'!P34 ->  | AB33: ='Yes Ins No CI'!U34 -> 
A34: 31 | B34: ='No Ins No CI'!B35 ->  | C34: ='No Ins No CI'!O35 ->  | D34: ='No Ins Yes CI'!O35 ->  | E34: ='Yes Ins Yes CI'!Q35 ->  | F34: ='Yes Ins No CI'!W35 ->  | R34: 31 | S34: ='No Ins No CI'!B35 ->  | T34: ='No Ins No CI'!H35 ->  | U34: ='No Ins No CI'!N35 ->  | V34: ='No Ins Yes CI'!H35 ->  | W34: ='No Ins Yes CI'!N35 ->  | X34: ='Yes Ins Yes CI'!H35 ->  | Y34: ='Yes Ins Yes CI'!P35 ->  | Z34: ='Yes Ins No CI'!H35 ->  | AA34: ='Yes Ins No CI'!P35 ->  | AB34: ='Yes Ins No CI'!U35 -> 
A35: 32 | B35: ='No Ins No CI'!B36 ->  | C35: ='No Ins No CI'!O36 ->  | D35: ='No Ins Yes CI'!O36 ->  | E35: ='Yes Ins Yes CI'!Q36 ->  | F35: ='Yes Ins No CI'!W36 ->  | R35: 32 | S35: ='No Ins No CI'!B36 ->  | T35: ='No Ins No CI'!H36 ->  | U35: ='No Ins No CI'!N36 ->  | V35: ='No Ins Yes CI'!H36 ->  | W35: ='No Ins Yes CI'!N36 ->  | X35: ='Yes Ins Yes CI'!H36 ->  | Y35: ='Yes Ins Yes CI'!P36 ->  | Z35: ='Yes Ins No CI'!H36 ->  | AA35: ='Yes Ins No CI'!P36 ->  | AB35: ='Yes Ins No CI'!U36 -> 
A36: 33 | B36: ='No Ins No CI'!B37 ->  | C36: ='No Ins No CI'!O37 ->  | D36: ='No Ins Yes CI'!O37 ->  | E36: ='Yes Ins Yes CI'!Q37 ->  | F36: ='Yes Ins No CI'!W37 ->  | R36: 33 | S36: ='No Ins No CI'!B37 ->  | T36: ='No Ins No CI'!H37 ->  | U36: ='No Ins No CI'!N37 ->  | V36: ='No Ins Yes CI'!H37 ->  | W36: ='No Ins Yes CI'!N37 ->  | X36: ='Yes Ins Yes CI'!H37 ->  | Y36: ='Yes Ins Yes CI'!P37 ->  | Z36: ='Yes Ins No CI'!H37 ->  | AA36: ='Yes Ins No CI'!P37 ->  | AB36: ='Yes Ins No CI'!U37 -> 
A37: 34 | B37: ='No Ins No CI'!B38 ->  | C37: ='No Ins No CI'!O38 ->  | D37: ='No Ins Yes CI'!O38 ->  | E37: ='Yes Ins Yes CI'!Q38 ->  | F37: ='Yes Ins No CI'!W38 ->  | R37: 34 | S37: ='No Ins No CI'!B38 ->  | T37: ='No Ins No CI'!H38 ->  | U37: ='No Ins No CI'!N38 ->  | V37: ='No Ins Yes CI'!H38 ->  | W37: ='No Ins Yes CI'!N38 ->  | X37: ='Yes Ins Yes CI'!H38 ->  | Y37: ='Yes Ins Yes CI'!P38 ->  | Z37: ='Yes Ins No CI'!H38 ->  | AA37: ='Yes Ins No CI'!P38 ->  | AB37: ='Yes Ins No CI'!U38 -> 
A38: 35 | B38: ='No Ins No CI'!B39 ->  | C38: ='No Ins No CI'!O39 ->  | D38: ='No Ins Yes CI'!O39 ->  | E38: ='Yes Ins Yes CI'!Q39 ->  | F38: ='Yes Ins No CI'!W39 ->  | R38: 35 | S38: ='No Ins No CI'!B39 ->  | T38: ='No Ins No CI'!H39 ->  | U38: ='No Ins No CI'!N39 ->  | V38: ='No Ins Yes CI'!H39 ->  | W38: ='No Ins Yes CI'!N39 ->  | X38: ='Yes Ins Yes CI'!H39 ->  | Y38: ='Yes Ins Yes CI'!P39 ->  | Z38: ='Yes Ins No CI'!H39 ->  | AA38: ='Yes Ins No CI'!P39 ->  | AB38: ='Yes Ins No CI'!U39 -> 
A39: 36 | B39: ='No Ins No CI'!B40 ->  | C39: ='No Ins No CI'!O40 ->  | D39: ='No Ins Yes CI'!O40 ->  | E39: ='Yes Ins Yes CI'!Q40 ->  | F39: ='Yes Ins No CI'!W40 ->  | R39: 36 | S39: ='No Ins No CI'!B40 ->  | T39: ='No Ins No CI'!H40 ->  | U39: ='No Ins No CI'!N40 ->  | V39: ='No Ins Yes CI'!H40 ->  | W39: ='No Ins Yes CI'!N40 ->  | X39: ='Yes Ins Yes CI'!H40 ->  | Y39: ='Yes Ins Yes CI'!P40 ->  | Z39: ='Yes Ins No CI'!H40 ->  | AA39: ='Yes Ins No CI'!P40 ->  | AB39: ='Yes Ins No CI'!U40 -> 
A40: 37 | B40: ='No Ins No CI'!B41 ->  | C40: ='No Ins No CI'!O41 ->  | D40: ='No Ins Yes CI'!O41 ->  | E40: ='Yes Ins Yes CI'!Q41 ->  | F40: ='Yes Ins No CI'!W41 ->  | R40: 37 | S40: ='No Ins No CI'!B41 ->  | T40: ='No Ins No CI'!H41 ->  | U40: ='No Ins No CI'!N41 ->  | V40: ='No Ins Yes CI'!H41 ->  | W40: ='No Ins Yes CI'!N41 ->  | X40: ='Yes Ins Yes CI'!H41 ->  | Y40: ='Yes Ins Yes CI'!P41 ->  | Z40: ='Yes Ins No CI'!H41 ->  | AA40: ='Yes Ins No CI'!P41 ->  | AB40: ='Yes Ins No CI'!U41 -> 
A41: 38 | B41: ='No Ins No CI'!B42 ->  | C41: ='No Ins No CI'!O42 ->  | D41: ='No Ins Yes CI'!O42 ->  | E41: ='Yes Ins Yes CI'!Q42 ->  | F41: ='Yes Ins No CI'!W42 ->  | R41: 38 | S41: ='No Ins No CI'!B42 ->  | T41: ='No Ins No CI'!H42 ->  | U41: ='No Ins No CI'!N42 ->  | V41: ='No Ins Yes CI'!H42 ->  | W41: ='No Ins Yes CI'!N42 ->  | X41: ='Yes Ins Yes CI'!H42 ->  | Y41: ='Yes Ins Yes CI'!P42 ->  | Z41: ='Yes Ins No CI'!H42 ->  | AA41: ='Yes Ins No CI'!P42 ->  | AB41: ='Yes Ins No CI'!U42 -> 
A42: 39 | B42: ='No Ins No CI'!B43 ->  | C42: ='No Ins No CI'!O43 ->  | D42: ='No Ins Yes CI'!O43 ->  | E42: ='Yes Ins Yes CI'!Q43 ->  | F42: ='Yes Ins No CI'!W43 ->  | R42: 39 | S42: ='No Ins No CI'!B43 ->  | T42: ='No Ins No CI'!H43 ->  | U42: ='No Ins No CI'!N43 ->  | V42: ='No Ins Yes CI'!H43 ->  | W42: ='No Ins Yes CI'!N43 ->  | X42: ='Yes Ins Yes CI'!H43 ->  | Y42: ='Yes Ins Yes CI'!P43 ->  | Z42: ='Yes Ins No CI'!H43 ->  | AA42: ='Yes Ins No CI'!P43 ->  | AB42: ='Yes Ins No CI'!U43 -> 
A43: 40 | B43: ='No Ins No CI'!B44 ->  | C43: ='No Ins No CI'!O44 ->  | D43: ='No Ins Yes CI'!O44 ->  | E43: ='Yes Ins Yes CI'!Q44 ->  | F43: ='Yes Ins No CI'!W44 ->  | R43: 40 | S43: ='No Ins No CI'!B44 ->  | T43: ='No Ins No CI'!H44 ->  | U43: ='No Ins No CI'!N44 ->  | V43: ='No Ins Yes CI'!H44 ->  | W43: ='No Ins Yes CI'!N44 ->  | X43: ='Yes Ins Yes CI'!H44 ->  | Y43: ='Yes Ins Yes CI'!P44 ->  | Z43: ='Yes Ins No CI'!H44 ->  | AA43: ='Yes Ins No CI'!P44 ->  | AB43: ='Yes Ins No CI'!U44 -> 
A44: 41 | B44: ='No Ins No CI'!B45 ->  | C44: ='No Ins No CI'!O45 ->  | D44: ='No Ins Yes CI'!O45 ->  | E44: ='Yes Ins Yes CI'!Q45 ->  | F44: ='Yes Ins No CI'!W45 ->  | R44: 41 | S44: ='No Ins No CI'!B45 ->  | T44: ='No Ins No CI'!H45 ->  | U44: ='No Ins No CI'!N45 ->  | V44: ='No Ins Yes CI'!H45 ->  | W44: ='No Ins Yes CI'!N45 ->  | X44: ='Yes Ins Yes CI'!H45 ->  | Y44: ='Yes Ins Yes CI'!P45 ->  | Z44: ='Yes Ins No CI'!H45 ->  | AA44: ='Yes Ins No CI'!P45 ->  | AB44: ='Yes Ins No CI'!U45 -> 
A45: 42 | B45: ='No Ins No CI'!B46 ->  | C45: ='No Ins No CI'!O46 ->  | D45: ='No Ins Yes CI'!O46 ->  | E45: ='Yes Ins Yes CI'!Q46 ->  | F45: ='Yes Ins No CI'!W46 ->  | R45: 42 | S45: ='No Ins No CI'!B46 ->  | T45: ='No Ins No CI'!H46 ->  | U45: ='No Ins No CI'!N46 ->  | V45: ='No Ins Yes CI'!H46 ->  | W45: ='No Ins Yes CI'!N46 ->  | X45: ='Yes Ins Yes CI'!H46 ->  | Y45: ='Yes Ins Yes CI'!P46 ->  | Z45: ='Yes Ins No CI'!H46 ->  | AA45: ='Yes Ins No CI'!P46 ->  | AB45: ='Yes Ins No CI'!U46 -> 
A46: 43 | B46: ='No Ins No CI'!B47 ->  | C46: ='No Ins No CI'!O47 ->  | D46: ='No Ins Yes CI'!O47 ->  | E46: ='Yes Ins Yes CI'!Q47 ->  | F46: ='Yes Ins No CI'!W47 ->  | R46: 43 | S46: ='No Ins No CI'!B47 ->  | T46: ='No Ins No CI'!H47 ->  | U46: ='No Ins No CI'!N47 ->  | V46: ='No Ins Yes CI'!H47 ->  | W46: ='No Ins Yes CI'!N47 ->  | X46: ='Yes Ins Yes CI'!H47 ->  | Y46: ='Yes Ins Yes CI'!P47 ->  | Z46: ='Yes Ins No CI'!H47 ->  | AA46: ='Yes Ins No CI'!P47 ->  | AB46: ='Yes Ins No CI'!U47 -> 
A47: 44 | B47: ='No Ins No CI'!B48 ->  | C47: ='No Ins No CI'!O48 ->  | D47: ='No Ins Yes CI'!O48 ->  | E47: ='Yes Ins Yes CI'!Q48 ->  | F47: ='Yes Ins No CI'!W48 ->  | R47: 44 | S47: ='No Ins No CI'!B48 ->  | T47: ='No Ins No CI'!H48 ->  | U47: ='No Ins No CI'!N48 ->  | V47: ='No Ins Yes CI'!H48 ->  | W47: ='No Ins Yes CI'!N48 ->  | X47: ='Yes Ins Yes CI'!H48 ->  | Y47: ='Yes Ins Yes CI'!P48 ->  | Z47: ='Yes Ins No CI'!H48 ->  | AA47: ='Yes Ins No CI'!P48 ->  | AB47: ='Yes Ins No CI'!U48 -> 
A48: 45 | B48: ='No Ins No CI'!B49 ->  | C48: ='No Ins No CI'!O49 ->  | D48: ='No Ins Yes CI'!O49 ->  | E48: ='Yes Ins Yes CI'!Q49 ->  | F48: ='Yes Ins No CI'!W49 ->  | R48: 45 | S48: ='No Ins No CI'!B49 ->  | T48: ='No Ins No CI'!H49 ->  | U48: ='No Ins No CI'!N49 ->  | V48: ='No Ins Yes CI'!H49 ->  | W48: ='No Ins Yes CI'!N49 ->  | X48: ='Yes Ins Yes CI'!H49 ->  | Y48: ='Yes Ins Yes CI'!P49 ->  | Z48: ='Yes Ins No CI'!H49 ->  | AA48: ='Yes Ins No CI'!P49 ->  | AB48: ='Yes Ins No CI'!U49 -> 
A49: 46 | B49: ='No Ins No CI'!B50 ->  | C49: ='No Ins No CI'!O50 ->  | D49: ='No Ins Yes CI'!O50 ->  | E49: ='Yes Ins Yes CI'!Q50 ->  | F49: ='Yes Ins No CI'!W50 ->  | R49: 46 | S49: ='No Ins No CI'!B50 ->  | T49: ='No Ins No CI'!H50 ->  | U49: ='No Ins No CI'!N50 ->  | V49: ='No Ins Yes CI'!H50 ->  | W49: ='No Ins Yes CI'!N50 ->  | X49: ='Yes Ins Yes CI'!H50 ->  | Y49: ='Yes Ins Yes CI'!P50 ->  | Z49: ='Yes Ins No CI'!H50 ->  | AA49: ='Yes Ins No CI'!P50 ->  | AB49: ='Yes Ins No CI'!U50 -> 
A50: 47 | B50: ='No Ins No CI'!B51 ->  | C50: ='No Ins No CI'!O51 ->  | D50: ='No Ins Yes CI'!O51 ->  | E50: ='Yes Ins Yes CI'!Q51 ->  | F50: ='Yes Ins No CI'!W51 ->  | R50: 47 | S50: ='No Ins No CI'!B51 ->  | T50: ='No Ins No CI'!H51 ->  | U50: ='No Ins No CI'!N51 ->  | V50: ='No Ins Yes CI'!H51 ->  | W50: ='No Ins Yes CI'!N51 ->  | X50: ='Yes Ins Yes CI'!H51 ->  | Y50: ='Yes Ins Yes CI'!P51 ->  | Z50: ='Yes Ins No CI'!H51 ->  | AA50: ='Yes Ins No CI'!P51 ->  | AB50: ='Yes Ins No CI'!U51 -> 
A51: 48 | B51: ='No Ins No CI'!B52 ->  | C51: ='No Ins No CI'!O52 ->  | D51: ='No Ins Yes CI'!O52 ->  | E51: ='Yes Ins Yes CI'!Q52 ->  | F51: ='Yes Ins No CI'!W52 ->  | R51: 48 | S51: ='No Ins No CI'!B52 ->  | T51: ='No Ins No CI'!H52 ->  | U51: ='No Ins No CI'!N52 ->  | V51: ='No Ins Yes CI'!H52 ->  | W51: ='No Ins Yes CI'!N52 ->  | X51: ='Yes Ins Yes CI'!H52 ->  | Y51: ='Yes Ins Yes CI'!P52 ->  | Z51: ='Yes Ins No CI'!H52 ->  | AA51: ='Yes Ins No CI'!P52 ->  | AB51: ='Yes Ins No CI'!U52 -> 
A52: 49 | B52: ='No Ins No CI'!B53 ->  | C52: ='No Ins No CI'!O53 ->  | D52: ='No Ins Yes CI'!O53 ->  | E52: ='Yes Ins Yes CI'!Q53 ->  | F52: ='Yes Ins No CI'!W53 ->  | R52: 49 | S52: ='No Ins No CI'!B53 ->  | T52: ='No Ins No CI'!H53 ->  | U52: ='No Ins No CI'!N53 ->  | V52: ='No Ins Yes CI'!H53 ->  | W52: ='No Ins Yes CI'!N53 ->  | X52: ='Yes Ins Yes CI'!H53 ->  | Y52: ='Yes Ins Yes CI'!P53 ->  | Z52: ='Yes Ins No CI'!H53 ->  | AA52: ='Yes Ins No CI'!P53 ->  | AB52: ='Yes Ins No CI'!U53 -> 
A53: 50 | B53: ='No Ins No CI'!B54 ->  | C53: ='No Ins No CI'!O54 ->  | D53: ='No Ins Yes CI'!O54 ->  | E53: ='Yes Ins Yes CI'!Q54 ->  | F53: ='Yes Ins No CI'!W54 ->  | R53: 50 | S53: ='No Ins No CI'!B54 ->  | T53: ='No Ins No CI'!H54 ->  | U53: ='No Ins No CI'!N54 ->  | V53: ='No Ins Yes CI'!H54 ->  | W53: ='No Ins Yes CI'!N54 ->  | X53: ='Yes Ins Yes CI'!H54 ->  | Y53: ='Yes Ins Yes CI'!P54 ->  | Z53: ='Yes Ins No CI'!H54 ->  | AA53: ='Yes Ins No CI'!P54 ->  | AB53: ='Yes Ins No CI'!U54 -> 
A54: 51 | B54: ='No Ins No CI'!B55 ->  | C54: ='No Ins No CI'!O55 ->  | D54: ='No Ins Yes CI'!O55 ->  | E54: ='Yes Ins Yes CI'!Q55 ->  | F54: ='Yes Ins No CI'!W55 ->  | R54: 51 | S54: ='No Ins No CI'!B55 ->  | T54: ='No Ins No CI'!H55 ->  | U54: ='No Ins No CI'!N55 ->  | V54: ='No Ins Yes CI'!H55 ->  | W54: ='No Ins Yes CI'!N55 ->  | X54: ='Yes Ins Yes CI'!H55 ->  | Y54: ='Yes Ins Yes CI'!P55 ->  | Z54: ='Yes Ins No CI'!H55 ->  | AA54: ='Yes Ins No CI'!P55 ->  | AB54: ='Yes Ins No CI'!U55 -> 
A55: 52 | B55: ='No Ins No CI'!B56 ->  | C55: ='No Ins No CI'!O56 ->  | D55: ='No Ins Yes CI'!O56 ->  | E55: ='Yes Ins Yes CI'!Q56 ->  | F55: ='Yes Ins No CI'!W56 ->  | R55: 52 | S55: ='No Ins No CI'!B56 ->  | T55: ='No Ins No CI'!H56 ->  | U55: ='No Ins No CI'!N56 ->  | V55: ='No Ins Yes CI'!H56 ->  | W55: ='No Ins Yes CI'!N56 ->  | X55: ='Yes Ins Yes CI'!H56 ->  | Y55: ='Yes Ins Yes CI'!P56 ->  | Z55: ='Yes Ins No CI'!H56 ->  | AA55: ='Yes Ins No CI'!P56 ->  | AB55: ='Yes Ins No CI'!U56 -> 
A56: 53 | B56: ='No Ins No CI'!B57 ->  | C56: ='No Ins No CI'!O57 ->  | D56: ='No Ins Yes CI'!O57 ->  | E56: ='Yes Ins Yes CI'!Q57 ->  | F56: ='Yes Ins No CI'!W57 ->  | R56: 53 | S56: ='No Ins No CI'!B57 ->  | T56: ='No Ins No CI'!H57 ->  | U56: ='No Ins No CI'!N57 ->  | V56: ='No Ins Yes CI'!H57 ->  | W56: ='No Ins Yes CI'!N57 ->  | X56: ='Yes Ins Yes CI'!H57 ->  | Y56: ='Yes Ins Yes CI'!P57 ->  | Z56: ='Yes Ins No CI'!H57 ->  | AA56: ='Yes Ins No CI'!P57 ->  | AB56: ='Yes Ins No CI'!U57 -> 

Sheet Yes Ins No CI (hidden)
C3: Registered Assets | J3: Non-Registered Assets | S3: ROP Benefits | Z3: ROP Values Percent
A4: Yr | B4: Age | C4: Beginning Balance | D4: Deposit | E4: Insurance Premium | G4: Growth | H4: End Of Year Balance | J4: Beginning Balance | K4: Deposit | N4: Insurance Premium | O4: After-tax Growth | P4: End Of Year Balance | Q4: Total EOY Assets | S4: ROP | T4: % of ROP | U4: ROPC/E | W4: Total EOY Assets with ROP | Z4: Year | AA4: ROPC/E-15 | AB4: Age | AC4: ROPC/E-age 65 | AD4: ROPC/E-age 75 | AF4: Planned Payments | AG4: Premium
A5: 1 | B5: =Age+1 -> 46 | C5: =Bal -> 200000 | D5: =Dep -> 18000 | E5: =IF(A5<=Yrs,IF(Prem>NonRegDep,(Prem-NonRegDep), 0),0) -> 0 | G5: =(C5+D5-E5-F5)*Growth -> 8720 | H5: =IF(C5+D5-E5-F5+G5<=0,0,C5+D5-E5-F5+G5) -> 226720 | J5: =NonRegBal -> 40000 | K5: =NonRegDep -> 3000 | N5: =IF(A5<=NonRegYrs,MIN(Prem,NonRegDep),0) -> 0 | O5: =IF(A5=" "," ",(J5+K5-L5+M5-N5)*NonRegGrowth) -> 1118 | P5: =IF(A5=" "," ",J5+K5-L5+M5-N5+O5) -> 44118 | Q5: =H5+P5 -> 270838 | S5: =IF(B5=" "," ",Prem*MIN(Yrs,(B5-Age))) -> 0 | T5: =IF(B5=" "," ",IF(ROPYr=15,VLOOKUP(A5,Z5:AA57,2),IF(ROPYr=65,VLOOKUP(B5,AB5:AD57,2),VLOOKUP(B5,AB5:AD57,3)))) -> 0 | U5: =IF(B5=" "," ",IF(ROPYrStr="Not included",0,S5*T5)) -> 0 | W5: =IF(A5=" "," ",Q5+U5) -> 270838 | Z5: 1 | AA5: 0 | AB5: 19 | AC5: 0 | AD5: 0 | AF5: =D5+K5 -> 21000 | AG5: =IF(A5<='Data Entry'!$B$26,Prem,0) -> 0 | AH5: =AF5-AG5 -> 21000
A6: =IF(A5=" "," ",IF(B5+1>IllustrateToAge," ",A5+1)) -> 2 | B6: =IF(A6=" "," ",B5+1) -> 47 | C6: =IF(A6=" "," ",H5) -> 226720 | D6: =IF(A6=" "," ",IF(A6<=Yrs,Dep,0)) -> 18000 | E6: 0 | G6: =IF(A6=" "," ",IF(C6+D6-E6-F6<=0,0,(C6+D6-E6-F6)*Growth)) -> 9788.8 | H6: =IF(A6=" "," ",IF(C6+D6-E6-F6+G6<=0,0,C6+D6-E6-F6+G6)) -> 254508.8 | J6: =IF(A6=" "," ",P5) -> 44118 | K6: =IF(A6=" "," ",IF(A6<=NonRegYrs,NonRegDep,0)) -> 3000 | N6: =IF(A6<=NonRegYrs,MIN(Prem,NonRegDep),0) -> 0 | O6: 1225.068 | P6: =IF(A6=" "," ",J6+K6-L6+M6-N6+O6) -> 48343.068 | Q6: =IF(A6=" "," ",H6+P6) -> 302851.868 | S6: 0 | T6: 0 | U6: 0 | W6: =IF(A6=" "," ",Q6+U6) -> 302851.868 | Z6: 2 | AA6: 0 | AB6: 20 | AC6: 0 | AD6: 0 | AF6: =D6+K6 -> 21000 | AG6: =IF(A6<='Data Entry'!$B$26,Prem,0) -> 0
A7: 3 | B7: 48 | C7: =IF(A7=" "," ",H6) -> 254508.8 | D7: =IF(A7=" "," ",IF(A7<=Yrs,Dep,0)) -> 18000 | E7: 0 | G7: =IF(A7=" "," ",IF(C7+D7-E7-F7<=0,0,(C7+D7-E7-F7)*Growth)) -> 10900.352 | H7: =IF(A7=" "," ",IF(C7+D7-E7-F7+G7<=0,0,C7+D7-E7-F7+G7)) -> 283409.152 | J7: =IF(A7=" "," ",P6) -> 48343.068 | K7: =IF(A7=" "," ",IF(A7<=NonRegYrs,NonRegDep,0)) -> 3000 | N7: =IF(A7<=NonRegYrs,MIN(Prem,NonRegDep),0) -> 0 | O7: =IF(A7=" "," ",(J7+K7-L7+M7-N7)*NonRegGrowth) -> 1334.919768 | P7: 52677.98777 | Q7: =IF(A7=" "," ",H7+P7) -> 336087.1398 | S7: 0 | T7: 0.1 | U7: 0 | W7: =IF(A7=" "," ",Q7+U7) -> 336087.1398 | Z7: 3 | AA7: 0.1 | AB7: 21 | AC7: 0 | AD7: 0 | AF7: 21000 | AG7: =IF(A7<='Data Entry'!$B$26,Prem,0) -> 0
A8: 4 | B8: 49 | C8: 283409.152 | D8: 18000 | E8: 0 | G8: 12056.36608 | H8: 313465.5181 | J8: 52677.98777 | K8: 3000 | N8: 0 | O8: 1447.627682 | P8: 57125.61545 | Q8: 370591.1335 | S8: 0 | T8: 0.175 | U8: 0 | W8: 370591.1335 | Z8: 4 | AA8: 0.175 | AB8: 22 | AC8: 0 | AD8: 0 | AF8: 21000 | AG8: =IF(A8<='Data Entry'!$B$26,Prem,0) -> 0
A9: 5 | B9: 50 | C9: 313465.5181 | D9: 18000 | E9: 0 | G9: 13258.62072 | H9: 344724.1388 | J9: 57125.61545 | K9: 3000 | N9: 0 | O9: 1563.266002 | P9: 61688.88145 | Q9: 406413.0203 | S9: 0 | T9: 0.25 | U9: 0 | W9: 406413.0203 | Z9: 5 | AA9: 0.25 | AB9: 23 | AC9: 0 | AD9: 0 | AF9: 21000 | AG9: =IF(A9<='Data Entry'!$B$26,Prem,0) -> 0
A10: 6 | B10: 51 | C10: 344724.1388 | D10: 18000 | E10: 0 | G10: 14508.96555 | H10: 377233.1044 | J10: 61688.88145 | K10: 3000 | N10: 0 | O10: 1681.910918 | P10: 66370.79237 | Q10: 443603.8967 | S10: 0 | T10: 0.325 | U10: 0 | W10: 443603.8967 | Z10: 6 | AA10: 0.325 | AB10: 24 | AC10: 0 | AD10: 0 | AF10: 21000 | AG10: =IF(A10<='Data Entry'!$B$26,Prem,0) -> 0
A11: 7 | B11: 52 | C11: 377233.1044 | D11: 18000 | E11: 0 | G11: 15809.32417 | H11: 411042.4285 | J11: 66370.79237 | K11: 3000 | N11: 0 | O11: 1803.640602 | P11: 71174.43297 | Q11: 482216.8615 | S11: 0 | T11: 0.4 | U11: 0 | W11: 482216.8615 | Z11: 7 | AA11: 0.4 | AB11: 25 | AC11: 0 | AD11: 0 | AF11: 21000 | AG11: =IF(A11<='Data Entry'!$B$26,Prem,0) -> 0
A12: 8 | B12: 53 | C12: 411042.4285 | D12: 18000 | E12: 0 | G12: 17161.69714 | H12: 446204.1257 | J12: 71174.43297 | K12: 3000 | N12: 0 | O12: 1928.535257 | P12: 76102.96823 | Q12: 522307.0939 | S12: 0 | T12: 0.475 | U12: 0 | W12: 522307.0939 | Z12: 8 | AA12: 0.475 | AB12: 26 | AC12: 0 | AD12: 0 | AF12: 21000 | AG12: =IF(A12<='Data Entry'!$B$26,Prem,0) -> 0
A13: 9 | B13: 54 | C13: 446204.1257 | D13: 18000 | E13: 0 | G13: 18568.16503 | H13: 482772.2907 | J13: 76102.96823 | K13: 3000 | N13: 0 | O13: 2056.677174 | P13: 81159.6454 | Q13: 563931.9361 | S13: 0 | T13: 0.55 | U13: 0 | W13: 563931.9361 | Z13: 9 | AA13: 0.55 | AB13: 27 | AC13: 0 | AD13: 0 | AF13: 21000 | AG13: =IF(A13<='Data Entry'!$B$26,Prem,0) -> 0
A14: 10 | B14: 55 | C14: 482772.2907 | D14: 18000 | E14: 0 | G14: 20030.89163 | H14: 520803.1823 | J14: 81159.6454 | K14: 3000 | N14: 0 | O14: 2188.15078 | P14: 86347.79618 | Q14: 607150.9785 | S14: 0 | T14: 0.625 | U14: 0 | W14: 607150.9785 | Z14: 10 | AA14: 0.625 | AB14: 28 | AC14: 0 | AD14: 0 | AF14: 21000 | AG14: =IF(A14<='Data Entry'!$B$26,Prem,0) -> 0
A15: 11 | B15: 56 | C15: 520803.1823 | D15: 18000 | E15: 0 | G15: 21552.12729 | H15: 560355.3096 | J15: 86347.79618 | K15: 3000 | N15: 0 | O15: 2323.042701 | P15: 91670.83888 | Q15: 652026.1485 | S15: 0 | T15: 0.7 | U15: 0 | W15: 652026.1485 | Z15: 11 | AA15: 0.7 | AB15: 29 | AC15: 0 | AD15: 0 | AF15: 21000 | AG15: =IF(A15<='Data Entry'!$B$26,Prem,0) -> 0
A16: 12 | B16: 57 | C16: 560355.3096 | D16: 18000 | E16: 0 | G16: 23134.21238 | H16: 601489.522 | J16: 91670.83888 | K16: 3000 | N16: 0 | O16: 2461.441811 | P16: 97132.28069 | Q16: 698621.8027 | S16: 0 | T16: 0.775 | U16: 0 | W16: 698621.8027 | Z16: 12 | AA16: 0.775 | AB16: 30 | AC16: 0 | AD16: 0 | AF16: 21000 | AG16: =IF(A16<='Data Entry'!$B$26,Prem,0) -> 0
A17: 13 | B17: 58 | C17: 601489.522 | D17: 18000 | E17: 0 | G17: 24779.58088 | H17: 644269.1029 | J17: 97132.28069 | K17: 3000 | N17: 0 | O17: 2603.439298 | P17: 102735.72 | Q17: 747004.8229 | S17: 0 | T17: 0.85 | U17: 0 | W17: 747004.8229 | Z17: 13 | AA17: 0.85 | AB17: 31 | AC17: 0 | AD17: 0 | AF17: 21000 | AG17: =IF(A17<='Data Entry'!$B$26,Prem,0) -> 0
A18: 14 | B18: 59 | C18: 644269.1029 | D18: 18000 | E18: 0 | G18: 26490.76412 | H18: 688759.867 | J18: 102735.72 | K18: 3000 | N18: 0 | O18: 2749.12872 | P18: 108484.8487 | Q18: 797244.7157 | S18: 0 | T18: 0.925 | U18: 0 | W18: 797244.7157 | Z18: 14 | AA18: 0.925 | AB18: 32 | AC18: 0 | AD18: 0 | AF18: 21000 | AG18: =IF(A18<='Data Entry'!$B$26,Prem,0) -> 0
A19: 15 | B19: 60 | C19: 688759.867 | D19: 18000 | E19: 0 | G19: 28270.39468 | H19: 735030.2617 | J19: 108484.8487 | K19: 3000 | N19: 0 | O19: 2898.606067 | P19: 114383.4548 | Q19: 849413.7165 | S19: 0 | T19: 1 | U19: 0 | W19: 849413.7165 | Z19: 15 | AA19: 1 | AB19: 33 | AC19: 0 | AD19: 0 | AF19: 21000 | AG19: =IF(A19<='Data Entry'!$B$26,Prem,0) -> 0
A20: 16 | B20: 61 | C20: 735030.2617 | D20: 0 | E20: 0 | G20: 29401.21047 | H20: 764431.4721 | J20: 114383.4548 | K20: 0 | N20: 0 | O20: 2973.969824 | P20: 117357.4246 | Q20: 881788.8967 | S20: 0 | T20: 1 | U20: 0 | W20: 881788.8967 | Z20: 16 | AA20: 1 | AB20: 34 | AC20: 0 | AD20: 0 | AF20: 0 | AG20: =IF(A20<='Data Entry'!$B$26,Prem,0) -> 0
A21: 17 | B21: 62 | C21: 764431.4721 | D21: 0 | E21: 0 | G21: 30577.25889 | H21: 795008.731 | J21: 117357.4246 | K21: 0 | N21: 0 | O21: 3051.29304 | P21: 120408.7176 | Q21: 915417.4487 | S21: 0 | T21: 1 | U21: 0 | W21: 915417.4487 | Z21: 17 | AA21: 1 | AB21: 35 | AC21: 0 | AD21: 0 | AF21: 0 | AG21: =IF(A21<='Data Entry'!$B$26,Prem,0) -> 0
A22: 18 | B22: 63 | C22: 795008.731 | D22: 0 | E22: 0 | G22: 31800.34924 | H22: 826809.0803 | J22: 120408.7176 | K22: 0 | N22: 0 | O22: 3130.626659 | P22: 123539.3443 | Q22: 950348.4246 | S22: 0 | T22: 1 | U22: 0 | W22: 950348.4246 | Z22: 18 | AA22: 1 | AB22: 36 | AC22: 0 | AD22: 0 | AF22: 0 | AG22: =IF(A22<='Data Entry'!$B$26,Prem,0) -> 0
A23: 19 | B23: 64 | C23: 826809.0803 | D23: 0 | E23: 0 | G23: 33072.36321 | H23: 859881.4435 | J23: 123539.3443 | K23: 0 | N23: 0 | O23: 3212.022952 | P23: 126751.3673 | Q23: 986632.8107 | S23: 0 | T23: 1 | U23: 0 | W23: 986632.8107 | Z23: 19 | AA23: 1 | AB23: 37 | AC23: 0 | AD23: 0 | AF23: 0 | AG23: =IF(A23<='Data Entry'!$B$26,Prem,0) -> 0
A24: 20 | B24: 65 | C24: 859881.4435 | D24: 0 | E24: 0 | G24: 34395.25774 | H24: 894276.7012 | J24: 126751.3673 | K24: 0 | N24: 0 | O24: 3295.535549 | P24: 130046.9028 | Q24: 1024323.604 | S24: 0 | T24: 1 | U24: 0 | W24: 1024323.604 | Z24: 20 | AA24: 1 | AB24: 38 | AC24: 0 | AD24: 0 | AF24: 0 | AG24: =IF(A24<='Data Entry'!$B$26,Prem,0) -> 0
A25: 21 | B25: 66 | C25: 894276.7012 | D25: 0 | E25: 0 | G25: 35771.06805 | H25: 930047.7693 | J25: 130046.9028 | K25: 0 | N25: 0 | O25: 3381.219473 | P25: 133428.1223 | Q25: 1063475.892 | S25: 0 | T25: 1 | U25: 0 | W25: 1063475.892 | Z25: 21 | AA25: 1 | AB25: 39 | AC25: 0 | AD25: 0 | AF25: 0 | AG25: =IF(A25<='Data Entry'!$B$26,Prem,0) -> 0
A26: 22 | B26: 67 | C26: 930047.7693 | D26: 0 | E26: 0 | G26: 37201.91077 | H26: 967249.68 | J26: 133428.1223 | K26: 0 | N26: 0 | O26: 3469.131179 | P26: 136897.2535 | Q26: 1104146.933 | S26: 0 | T26: 1 | U26: 0 | W26: 1104146.933 | Z26: 22 | AA26: 1 | AB26: 40 | AC26: 0 | AD26: 0 | AF26: 0 | AG26: =IF(A26<='Data Entry'!$B$26,Prem,0) -> 0
A27: 23 | B27: 68 | C27: 967249.68 | D27: 0 | E27: 0 | G27: 38689.9872 | H27: 1005939.667 | J27: 136897.2535 | K27: 0 | N27: 0 | O27: 3559.32859 | P27: 140456.582 | Q27: 1146396.249 | S27: 0 | T27: 1 | U27: 0 | W27: 1146396.249 | Z27: 23 | AA27: 1 | AB27: 41 | AC27: 0 | AD27: 0 | AF27: 0 | AG27: =IF(A27<='Data Entry'!$B$26,Prem,0) -> 0
A28: 24 | B28: 69 | C28: 1005939.667 | D28: 0 | E28: 0 | G28: 40237.58669 | H28: 1046177.254 | J28: 140456.582 | K28: 0 | N28: 0 | O28: 3651.871133 | P28: 144108.4532 | Q28: 1190285.707 | S28: 0 | T28: 1 | U28: 0 | W28: 1190285.707 | Z28: 24 | AA28: 1 | AB28: 42 | AC28: 0 | AD28: 0 | AF28: 0 | AG28: =IF(A28<='Data Entry'!$B$26,Prem,0) -> 0
A29: 25 | B29: 70 | C29: 1046177.254 | D29: 0 | E29: 0 | G29: 41847.09016 | H29: 1088024.344 | J29: 144108.4532 | K29: 0 | N29: 0 | O29: 3746.819783 | P29: 147855.273 | Q29: 1235879.617 | S29: 0 | T29: 1 | U29: 0 | W29: 1235879.617 | Z29: 25 | AA29: 1 | AB29: 43 | AC29: 0 | AD29: 0 | AF29: 0 | AG29: =IF(A29<='Data Entry'!$B$26,Prem,0) -> 0
A30: 26 | B30: 71 | C30: 1088024.344 | D30: 0 | E30: 0 | G30: 43520.97376 | H30: 1131545.318 | J30: 147855.273 | K30: 0 | N30: 0 | O30: 3844.237097 | P30: 151699.5101 | Q30: 1283244.828 | S30: 0 | T30: 1 | U30: 0 | W30: 1283244.828 | Z30: 26 | AA30: 1 | AB30: 44 | AC30: 0 | AD30: 0 | AF30: 0 | AG30: =IF(A30<='Data Entry'!$B$26,Prem,0) -> 0
E31: 0 | N31: 0 | Z31: 27 | AA31: 1 | AB31: 45 | AC31: 0 | AD31: 0 | AG31: =IF(A31<='Data Entry'!$B$26,Prem,0) -> 0
E32: 0 | N32: 0 | Z32: 28 | AA32: 1 | AB32: 46 | AC32: 0 | AD32: 0 | AG32: =IF(A32<='Data Entry'!$B$26,Prem,0) -> 0
E33: 0 | N33: 0 | Z33: 29 | AA33: 1 | AB33: 47 | AC33: 0 | AD33: 0 | AG33: =IF(A33<='Data Entry'!$B$26,Prem,0) -> 0
E34: 0 | N34: 0 | Z34: 30 | AA34: 1 | AB34: 48 | AC34: 0 | AD34: 0 | AG34: =IF(A34<='Data Entry'!$B$26,Prem,0) -> 0
E35: 0 | N35: 0 | Z35: 31 | AA35: 1 | AB35: 49 | AC35: 0 | AD35: 0 | AG35: =IF(A35<='Data Entry'!$B$26,Prem,0) -> 0
E36: 0 | N36: 0 | Z36: 32 | AA36: 1 | AB36: 50 | AC36: 0 | AD36: 0 | AG36: =IF(A36<='Data Entry'!$B$26,Prem,0) -> 0
E37: =IF(A37<=Yrs,IF(Prem>NonRegDep,(Prem-NonRegDep), 0),0) -> 0 | N37: 0 | S37: =IF(B37=" "," ",Prem*MIN(Yrs,(B37-Age))) ->  | T37: =IF(B37=" "," ",IF(ROPYr=15,VLOOKUP(A37,Z37:AA89,2),IF(ROPYr=65,VLOOKUP(B37,AB37:AD89,2),VLOOKUP(B37,AB37:AD89,3)))) ->  | U37: =IF(B37=" "," ",IF(ROPYrStr="Not included",0,S37*T37)) ->  | Z37: 33 | AA37: 1 | AB37: 51 | AC37: 0 | AD37: 0 | AG37: =IF(A37<='Data Entry'!$B$26,Prem,0) -> 0
E38: 0 | N38: 0 | Z38: 34 | AA38: 1 | AB38: 52 | AC38: 0 | AD38: 0 | AG38: =IF(A38<='Data Entry'!$B$26,Prem,0) -> 0
E39: 0 | N39: 0 | Z39: 35 | AA39: 1 | AB39: 53 | AC39: 0.1 | AD39: 0 | AG39: =IF(A39<='Data Entry'!$B$26,Prem,0) -> 0
E40: 0 | N40: 0 | Z40: 36 | AA40: 1 | AB40: 54 | AC40: 0.175 | AD40: 0 | AG40: =IF(A40<='Data Entry'!$B$26,Prem,0) -> 0
E41: 0 | N41: 0 | Z41: 37 | AA41: 1 | AB41: 55 | AC41: 0.25 | AD41: 0 | AG41: =IF(A41<='Data Entry'!$B$26,Prem,0) -> 0
E42: 0 | N42: 0 | Z42: 38 | AA42: 1 | AB42: 56 | AC42: 0.325 | AD42: 0 | AG42: =IF(A42<='Data Entry'!$B$26,Prem,0) -> 0
E43: 0 | N43: 0 | Z43: 39 | AA43: 1 | AB43: 57 | AC43: 0.4 | AD43: 0 | AG43: =IF(A43<='Data Entry'!$B$26,Prem,0) -> 0
E44: 0 | N44: 0 | Z44: 40 | AA44: 1 | AB44: 58 | AC44: 0.475 | AD44: 0 | AG44: =IF(A44<='Data Entry'!$B$26,Prem,0) -> 0
E45: 0 | N45: 0 | Z45: 41 | AA45: 1 | AB45: 59 | AC45: 0.55 | AD45: 0 | AG45: =IF(A45<='Data Entry'!$B$26,Prem,0) -> 0
E46: 0 | N46: 0 | Z46: 42 | AA46: 1 | AB46: 60 | AC46: 0.625 | AD46: 0 | AG46: =IF(A46<='Data Entry'!$B$26,Prem,0) -> 0
B47: =IF(A47=" "," ",B46+1) ->  | E47: 0 | N47: 0 | Z47: 43 | AA47: 1 | AB47: 61 | AC47: 0.7 | AD47: 0 | AG47: =IF(A47<='Data Entry'!$B$26,Prem,0) -> 0
B48: =IF(A48=" "," ",B47+1) ->  | E48: 0 | N48: 0 | Z48: 44 | AA48: 1 | AB48: 62 | AC48: 0.775 | AD48: 0 | AG48: =IF(A48<='Data Entry'!$B$26,Prem,0) -> 0
E49: 0 | N49: 0 | Z49: 45 | AA49: 1 | AB49: 63 | AC49: 0.85 | AD49: 0.1 | AG49: =IF(A49<='Data Entry'!$B$26,Prem,0) -> 0
E50: 0 | N50: 0 | Z50: 46 | AA50: 1 | AB50: 64 | AC50: 0.925 | AD50: 0.175 | AG50: =IF(A50<='Data Entry'!$B$26,Prem,0) -> 0
E51: 0 | N51: 0 | Z51: 47 | AA51: 1 | AB51: 65 | AC51: 1 | AD51: 0.25 | AG51: =IF(A51<='Data Entry'!$B$26,Prem,0) -> 0
E52: 0 | N52: 0 | Z52: 48 | AA52: 1 | AB52: 66 | AC52: 1 | AD52: 0.325 | AG52: =IF(A52<='Data Entry'!$B$26,Prem,0) -> 0
E53: 0 | N53: 0 | Z53: 49 | AA53: 1 | AB53: 67 | AC53: 1 | AD53: 0.4 | AG53: =IF(A53<='Data Entry'!$B$26,Prem,0) -> 0
E54: 0 | N54: 0 | Z54: 50 | AA54: 1 | AB54: 68 | AC54: 1 | AD54: 0.475 | AG54: =IF(A54<='Data Entry'!$B$26,Prem,0) -> 0
E55: 0 | N55: 0 | Z55: 51 | AA55: 1 | AB55: 69 | AC55: 1 | AD55: 0.55 | AG55: =IF(A55<='Data Entry'!$B$26,Prem,0) -> 0
E56: 0 | N56: 0 | Z56: 52 | AA56: 1 | AB56: 70 | AC56: 1 | AD56: 0.625 | AG56: =IF(A56<='Data Entry'!$B$26,Prem,0) -> 0
E57: 0 | N57: 0 | Q57: =IF(A57=" "," ",H57+P57) ->  | Z57: 53 | AA57: 1 | AB57: 71 | AC57: 1 | AD57: 0.7 | AG57: =IF(A57<='Data Entry'!$B$26,Prem,0) -> 0
C58: =IF(A58=" "," ",H57) ->  | D58: =IF(A58=" "," ",IF(B58=CIYr,0,IF(A58<=Yrs,Dep,0))) ->  | E58: =IF(A58<=Yrs,IF(AND(B58<=CIYr,Prem>NonRegDep),Prem-NonRegDep, 0),0) -> 0 | F58: =IF(A58=" "," ",IF(AND(B58=CIYr,L58<(ActualNeed-NeedSelected)),(ActualNeed-NeedSelected-L58)/(1-Tax),0)) ->  | G58: =IF(A58=" "," ",IF(C58+D58-E58-F58<=0,0,(C58+D58-E58-F58)*Growth)) ->  | H58: =IF(A58=" "," ",IF(C58+D58-E58-F58+G58<=0,0,C58+D58-E58-F58+G58)) ->  | J58: =IF(A58=" "," ",P57) ->  | K58: =IF(A58=" "," ",IF(B58=CIYr,0,IF(A58<=NonRegYrs,NonRegDep,0))) ->  | N58: =IF(A58<=NonRegYrs,IF(B58<=CIYr,MIN(Prem,NonRegDep),0),0) -> 0 | O58: =IF(A58=" "," ",(J58+K58-L58)*NonRegGrowth) ->  | P58: =IF(A58=" "," ",J58+K58-L58+O58) ->  | Q58: =IF(A58=" "," ",H58+P58) ->  | Z58: 54 | AB58: 72 | AC58: 1 | AD58: 0.7
E59: 0 | N59: 0 | AC59: 1 | AD59: 0.775
E60: 0 | N60: 0 | AC60: 1 | AD60: 0.85
E61: 0 | N61: 0 | AC61: 1 | AD61: 0.925
E62: 0 | N62: 0 | AC62: 1 | AD62: 1
E63: 0 | N63: 0 | AC63: 1 | AD63: 1
E64: 0 | N64: 0 | AC64: 1 | AD64: 1
E65: 0 | N65: 0 | AC65: 1 | AD65: 1
E66: 0 | N66: 0 | AC66: 1 | AD66: 1
E67: 0 | N67: 0 | AC67: 1 | AD67: 1
E68: 0 | N68: 0 | AC68: 1 | AD68: 1
E69: =IF(A69<=Yrs,IF(AND(B69<=CIYr,Prem>NonRegDep),Prem-NonRegDep, 0),0) -> 0 | F69: =IF(A69=" "," ",IF(AND(B69=CIYr,L69<(ActualNeed-NeedSelected)),(ActualNeed-NeedSelected-L69)/(1-Tax),0)) ->  | N69: =IF(A69<=NonRegYrs,IF(B69<=CIYr,MIN(Prem,NonRegDep),0),0) -> 0 | AC69: 1 | AD69: 1
A70: =IF(A69=" "," ",IF(B69+1>IllustrateToAge," ",A69+1)) ->  | D70: =IF(A70=" "," ",IF(B70=CIYr,0,IF(A70<=Yrs,Dep,0))) ->  | E70: 0 | G70: =IF(A70=" "," ",IF(C70+D70-E70-F70<=0,0,(C70+D70-E70-F70)*Growth)) ->  | H70: =IF(A70=" "," ",IF(C70+D70-E70-F70+G70<=0,0,C70+D70-E70-F70+G70)) ->  | N70: 0 | Q70: =IF(A70=" "," ",H70+P70) ->  | AC70: 1 | AD70: 1

Sheet Introduction Page
D4: =IF('Data Entry'!B36="English","ASSET PROTECTION STRATEGY - CRITICAL ILLNESS INSURANCE","STRATÉGIE DE PROTECTION DE L’ACTIF – ASSURANCE MALADIES GRAVES") -> ASSET PROTECTION STRATEGY - CRITICAL ILLNESS INSURANCE
D6: =IF('Data Entry'!B36="English","YOUR CURRENT SITUATION","VOTRE SITUATION ACTUELLE") -> YOUR CURRENT SITUATION | Q6: =IF('Data Entry'!B36="English","A SOLUTION","UNE SOLUTION") -> A SOLUTION
E8: =IF('Data Entry'!B36="English",CONCATENATE("You've worked hard, made it a priority to save for the future and relied on the expertise of your advisor to help develop a sound financial plan."," When it comes to retirement, you'll want to enjoy it on your own terms. But what would happen to your savings if you were diagnosed with a critical illness ?"),CONCATENATE("Vous avez travaillé fort, fait de l’épargne une de vos priorités et fait confiance à l’expertise de votre conseiller pour établir un plan financier solide."," Vous voulez profiter de votre retraite à votre façon. Mais qu’adviendrait-il de votre épargne si vous receviez un diagnostic de maladie grave ?")) -> You've worked hard, made it a priority to save for the future and relied on the expertise of your advisor to help develop a sound financial plan. When it comes to retirement, you'll want to enjoy it on your own terms. But what would happen to your savings if you were diagnosed with a critical illness ? | Q8: =IF('Data Entry'!B36="English",CONCATENATE("Critical illness insurance can help protect your financial plan from the impact of a serious illness."," By redirecting a portion of the funds you planned to save, you can purchase critical illness insurance to help provide this protection."),CONCATENATE("L’assurance maladies graves contribue à protéger votre plan financier contre les répercussions d’une maladie grave."," En affectant une portion des fonds que vous aviez prévu épargner, vous pouvez acheter une assurance maladies graves pour obtenir cette protection. ")) -> Critical illness insurance can help protect your financial plan from the impact of a serious illness. By redirecting a portion of the funds you planned to save, you can purchase critical illness insurance to help provide this protection.
D13: =IF('Data Entry'!B36="English","HOW THE ASSET PROTECTION STRATEGY WORKS","FONCTIONNEMENT DE LA STRATÉGIE DE PROTECTION DE L’ACTIF") -> HOW THE ASSET PROTECTION STRATEGY WORKS
E15: =IF('Data Entry'!B36="English",CONCATENATE("Critical illness insurance helps avoid having to prematurely withdraw money from your investments."," It provides a lump sum benefit that can be used however you choose, including: 1) funding private or alternative medical treatment; 2) funding necessary home care; and 3) replacing lost income."),CONCATENATE("L’assurance maladies graves pourrait vous éviter de retirer prématurément de l’argent de vos placements. Elle prévoit le versement d’une prestation en une somme globale que vous pouvez utiliser comme bon vous semble."," Elle pourrait servir à : 1) payer les frais de soins médicaux privés ou de traitements de médecine douce; 2) payer les frais de soins à domicile nécessaires; et 3) compenser une perte de revenu.")) -> Critical illness insurance helps avoid having to prematurely withdraw money from your investments. It provides a lump sum benefit that can be used however you choose, including: 1) funding private or alternative medical treatment; 2) funding necessary home care; and 3) replacing lost income.
D18: =IF('Data Entry'!B36="English","THE IMPACT OF A SERIOUS ILLNESS","RÉPERCUSSIONS D’UNE MALADIE GRAVE") -> THE IMPACT OF A SERIOUS ILLNESS | N18: =IF('Data Entry'!B36="English","TIMELINE OF POSSIBLE OUTCOMES","RÉSULTATS POSSIBLES") -> TIMELINE OF POSSIBLE OUTCOMES
N19: =IF('Data Entry'!B36="English","CII protection may be required","Protection d’AMG peut-être requise") -> CII protection may be required | T19: =IF('Data Entry'!B36="English","Impact on investment portfolio","Répercussions sur le portefeuille de placements") -> Impact on investment portfolio
S22: =IF('Data Entry'!B36="English","No critical illness","Sans maladie grave") -> No critical illness | V22: =IF('Data Entry'!B36="English","No impact on portfolio","Aucune répercussion sur le portefeuille") -> No impact on portfolio
J23: =IF('Data Entry'!B36="English","Time off work","Absence du travail") -> Time off work | O23: =IF('Data Entry'!B36="English","Annual deposits","Versements annuels") -> Annual deposits
S25: =IF('Data Entry'!B36="English","Critical illness occurs","Avec maladie grave") -> Critical illness occurs | V25: =IF('Data Entry'!B36="English","Portfolio impacted by critical illness","Répercussions sur le portefeuille") -> Portfolio impacted by critical illness
D27: =IF('Data Entry'!B36="English","Consult with tax and legal advisors to find out how a critical illness could affect your financial plan","Demandez à vos conseillers fiscaux et juridiques quelles pourraient être les répercussions d’une maladie grave sur votre plan financier") -> Consult with tax and legal advisors to find out how a critical illness could affect your financial plan
J28: =IF('Data Entry'!B36="English","Healthcare expenses","Frais de soins de santé") -> Healthcare expenses | R28: =IF('Data Entry'!B36="English","If there is no critical illness insurance protection","Sans protection d’AMG") -> If there is no critical illness insurance protection
R30: =IF('Data Entry'!B36="English","If there is critical illness insurance protection","Avec protection d’AMG") -> If there is critical illness insurance protection
S32: =IF('Data Entry'!B36="English","Critical illness occurs","Avec maladie grave") -> Critical illness occurs | V32: =IF('Data Entry'!B36="English","Portfolio impact offset by critical illness benefit","Répercussions sur le portefeuille compensées par la prestation d’AMG") -> Portfolio impact offset by critical illness benefit
J33: =IF('Data Entry'!B36="English","Other expenses","Autres frais") -> Other expenses | O33: =IF('Data Entry'!B36="English","Annual deposits reduced by insurance premium","Versements annuels réduits de la prime d’assurance") -> Annual deposits reduced by insurance premium
S35: =IF('Data Entry'!B36="English","No critical illness","Sans maladie grave") -> No critical illness | V35: =IF('Data Entry'!B36="English",IF(Variables!E4<>"Not included","Portfolio with return of premium on cancellation or expiry (ROPC/E)","Portfolio reduced by insurance premium"),IF(Variables!E4<>"Not included","Portefeuille avec Remboursement des primes à la résiliation ou à l’expiration (RDPR/E)","Portefeuille réduit de la prime d'assurance")) -> Portfolio with return of premium on cancellation or expiry (ROPC/E)

Sheet Summary Page
D4: =IF('Data Entry'!B36="English","ASSET PROTECTION STRATEGY - CRITICAL ILLNESS INSURANCE","STRATÉGIE DE PROTECTION DE L’ACTIF – ASSURANCE MALADIES GRAVES") -> ASSET PROTECTION STRATEGY - CRITICAL ILLNESS INSURANCE
D6: =IF('Data Entry'!B36="English","POLICY DETAILS","RENSEIGNEMENTS SUR LE CONTRAT") -> POLICY DETAILS
D8: =IF('Data Entry'!B36="English","Insured Person:","Personne assurée") -> Insured Person: | K8: =IF('Data Entry'!B36="English","Total Initial Annual Premium:","Prime annuelle initiale totale") -> Total Initial Annual Premium:
E9: =IF('Data Entry'!B36="English",IF(TRIM(Name) = "", "", Name&", "&Gender&", Age "&Age&", "&SStatus),IF(TRIM(Name) = "", "", Name&", "&Variables!F1&", Âge de "&Age&" ans, "&Variables!F2)) -> Valued Client, Female, Age 45, Non-smoker | L9: =IF('Data Entry'!B36="English",Prem,TEXT(Prem,"### ### ##0_-$")) -> 0
D11: =IF('Data Entry'!B36="English","Product:","Produit") -> Product: | K11: =IF('Data Entry'!B36="English","Initial Insurance Coverage Amount:","Montant d’assurance initial") -> Initial Insurance Coverage Amount:
E12: =IF('Data Entry'!B36="English",IF(ROPYrStr<>"Not included","Sun CII with "&ROPYrStr,"Sun CII"),IF(ROPYrStr<>"Not included","AMG Sun Life avec "&Variables!F4,"AMG Sun Life")) -> Sun CII with ROPC/E - 15 years | L12: =IF('Data Entry'!B36="English",CINeed,TEXT(CINeed,"### ### ##0_-$")) -> 250000
D14: =IF('Data Entry'!B36="English","ASSUMPTIONS","HYPOTHÈSES") -> ASSUMPTIONS
D16: =IF('Data Entry'!B36="English","Investment Portfolio:","Portefeuille de placements") -> Investment Portfolio: | H16: =IF('Data Entry'!B36="English","Registered","Enregistrés") -> Registered | I16: =IF('Data Entry'!B36="English","Non-registered","Non enregistrés") -> Non-registered | K16: =IF('Data Entry'!B36="English","Coverage need","Besoin de couverture") -> Coverage need | N16: =IF('Data Entry'!B36="English","Cost in today's dollars","Coût en dollars courants") -> Cost in today's dollars | O16: =IF('Data Entry'!B36="English","Inflation rate","Taux d’inflation") -> Inflation rate | P16: =IF('Data Entry'!B36="English","Cost @ Age "&CIYr&CHAR(185),"Coût à "&CIYr&" ans"&CHAR(185)) -> Cost @ Age 55¹
E17: =IF('Data Entry'!B36="English","Existing investment assets:","Placements existants") -> Existing investment assets: | H17: =IF('Data Entry'!B36="English",Bal,TEXT(Bal,"### ### ##0_-$")) -> 200000 | I17: =IF('Data Entry'!B36="English",NonRegBal,TEXT(NonRegBal,"### ### ##0_-$")) -> 40000 | L17: =IF('Data Entry'!B36="English","Medical care:","Soins médicaux") -> Medical care: | N17: =IF('Data Entry'!B36="English",HlthCare,TEXT(HlthCare,"### ### ##0_-$")) -> 50000 | O17: =IF('Data Entry'!B36="English",inf,SUBSTITUTE(TEXT(inf,"#0.00 %"),".",",")) -> 0.04 | P17: =IF('Data Entry'!B36="English",ROUND(VLOOKUP(CIYr,CINeedTable,6),0),TEXT(ROUND(VLOOKUP(CIYr,CINeedTable,6),0),"### ### ##0_-$")) -> 74012
E18: =IF('Data Entry'!B36="English","Annual deposits:","Versements annuels") -> Annual deposits: | H18: =IF('Data Entry'!B36="English",Dep,TEXT(Dep,"### ### ##0_-$")) -> 18000 | I18: =IF('Data Entry'!B36="English",NonRegDep,TEXT(NonRegDep,"### ### ##0_-$")) -> 3000 | L18: =IF('Data Entry'!B36="English","Home care:","Soins à domicile") -> Home care: | N18: =IF('Data Entry'!B36="English",HomeCare,TEXT(HomeCare,"### ### ##0_-$")) -> 50000 | O18: =IF('Data Entry'!B36="English",inf,SUBSTITUTE(TEXT(inf,"#0.00 %"),".",",")) -> 0.04 | P18: =IF('Data Entry'!B36="English",ROUND(VLOOKUP(CIYr,CINeedTable,7),0),TEXT(ROUND(VLOOKUP(CIYr,CINeedTable,7),0),"### ### ##0_-$")) -> 74012
E19: =IF('Data Entry'!B36="English","Years of deposit:","Années de versements") -> Years of deposit: | H19: =Yrs -> 15 | I19: =NonRegYrs -> 15 | L19: =IF('Data Entry'!B36="English","Income replacement:","Remplacement du revenu") -> Income replacement: | N19: =IF('Data Entry'!B36="English",ROUND('CI Need'!E5,0),TEXT(ROUND('CI Need'!E5,0),"### ### ##0_-$")) -> 75000 | O19: =IF('Data Entry'!B36="English",SalInc,SUBSTITUTE(TEXT(SalInc,"#0.00 %"),".",",")) -> 0.03 | P19: =IF('Data Entry'!B36="English",ROUND(VLOOKUP(CIYr,CINeedTable,5),0),TEXT(ROUND(VLOOKUP(CIYr,CINeedTable,5),0),"### ### ##0_-$")) -> 100794
E20: =IF('Data Entry'!B36="English","Pre-tax growth rate:","Taux de croissance avant impôt") -> Pre-tax growth rate: | H20: =IF('Data Entry'!B36="English",Growth,SUBSTITUTE(TEXT(Growth,"#0.00 %"),".",",")) -> 0.04 | I20: =IF('Data Entry'!B36="English",NonRegGrowthBeforeTax,SUBSTITUTE(TEXT(NonRegGrowthBeforeTax,"#0.00 %"),".",",")) -> 0.04 | L20: =IF('Data Entry'!B36="English","Total need:","Besoin total") -> Total need: | N20: =IF('Data Entry'!B36="English",ROUND('CI Need'!I5,0),TEXT(ROUND('CI Need'!I5,0),"### ### ##0_-$")) -> 175000 | P20: =IF('Data Entry'!B36="English",ROUND(VLOOKUP(CIYr,CINeedTable,9),0),TEXT(ROUND(VLOOKUP(CIYr,CINeedTable,9),0),"### ### ##0_-$")) -> 248818
E21: =IF('Data Entry'!B36="English","Tax rate:","Taux d’imposition") -> Tax rate: | H21: =IF('Data Entry'!B36="English",RegTax_Rate,SUBSTITUTE(TEXT(RegTax_Rate,"#0.00 %"),".",",")) -> 0.35 | I21: =IF('Data Entry'!B36="English",Tax,SUBSTITUTE(TEXT(Tax,"#0.00 %"),".",",")) -> 0.35 | K21: =IF('Data Entry'!B36="English",CHAR(185)&" It is assumed that the critical illness occurs at age "&CIYr&" .",CHAR(185)&" En supposant que la maladie grave survient à "&CIYr&" ans.") -> ¹ It is assumed that the critical illness occurs at age 55 .
D23: =IF('Data Entry'!B36="English","PRESENTATION SUMMARY","SOMMAIRE") -> PRESENTATION SUMMARY
D25: =IF('Data Entry'!B36="English","Scenario descriptions and results","Description des scénarios et résultats") -> Scenario descriptions and results | O25: =IF('Data Entry'!B36="English","Portfolio value at age "&IllustrateToAge,"Valeur du portefeuille à "&IllustrateToAge& " ans")&CHAR(178) -> Portfolio value at age 71² | P25: =IF('Data Entry'!B36="English","Impact at age " & IllustrateToAge,"Impact à " & IllustrateToAge&" ans") -> Impact at age 71
E26: =IF('Data Entry'!B36="English","A. Annual deposits with no critical illness insurance and no critical illness","A. Versements annuels, sans AMG ni maladie grave") -> A. Annual deposits with no critical illness insurance and no critical illness | O26: =IF('Data Entry'!B36="English",Tables!M3,TEXT(Tables!M3,"### ### ##0_-$")) -> 1283244.828
E27: =IF('Data Entry'!B36="English","B. Annual deposits with no critical illness insurance and a critical illness occurs at age "&CIYr,"B. Versements annuels, sans AMG, mais avec une maladie grave à "&CIYr&" ans") -> B. Annual deposits with no critical illness insurance and a critical illness occurs at age 55 | O27: =IF('Data Entry'!B36="English",TEXT(Tables!N3,"$###,###,##0")&IF(Tables!N1=1,"*",""),TEXT(Tables!N3,"### ### ##0_-$")&IF(Tables!N1=1,"*","")) -> $615,549 | P27: =IF('Data Entry'!B36="English",Tables!N3-Tables!M3,TEXT(Tables!N3-Tables!M3,"### ### ##0_-$")) -> -667695.6196
E28: =IF('Data Entry'!B36="English","C. Annual deposits reduced by critical illness insurance premium, a critical illness occurs and receive benefit at age " & CIYr,"C. Versements annuels moins la prime d’AMG, avec maladie grave et prestation versée à "&CIYr&" ans") -> C. Annual deposits reduced by critical illness insurance premium, a critical illness occurs and receive benefit at age 55 | O28: =IF('Data Entry'!B36="English",TEXT(Tables!O3,"$###,###,##0")&IF(Tables!O1=1,"*",""),TEXT(Tables!O3,"### ### ##0_-$")&IF(Tables!O1=1,"*","")) -> $1,245,370 | P28: =IF('Data Entry'!B36="English",Tables!O3-Tables!M3,TEXT(Tables!O3-Tables!M3,"### ### ##0_-$")) -> -37874.99369
E29: =IF('Data Entry'!B36="English","D. Annual deposits reduced by critical illness insurance premium, no critical illness occurs" & IF(ROPYrStr<>"Not included",IF(Tables!M4>0," and ROPC/E benefit is claimed at age " & IllustrateToAge, ""),""),"D. Versements annuels moins la prime d’AMG, sans maladie grave" & IF(ROPYrStr<>"Not included",IF(Tables!M4>0," et RDPR/E demandé à " & IllustrateToAge&" ans", ""),"")) -> D. Annual deposits reduced by critical illness insurance premium, no critical illness occurs | O29: =IF('Data Entry'!B36="English",TEXT(Tables!P3,"$###,###,##0")&IF(Tables!P1=1,"*",""),TEXT(Tables!P3,"### ### ##0_-$")&IF(Tables!P1=1,"*","")) -> $1,283,245 | P29: =IF('Data Entry'!B36="English",Tables!P3-Tables!M3,TEXT(Tables!P3-Tables!M3,"### ### ##0_-$")) -> 0
E31: =CHAR(178)&IF('Data Entry'!B36="English"," The portfolio value may be a mix of taxed assets and yet-to-be-taxed registered assets."&" The withdrawals illustrated begin with non-registered assets, and will deplete those assets completely, if needed, before withdrawing registered assets."&" The potential impacts of investment portfolio withdrawals and the tax consequences of selling registered and non-registered assets should be discussed with your tax professional.","Le portefeuille peut combiner des actifs imposés et d’autres qui n’ont pas encore été imposés."&" Les retraits indiqués sont d’abord faits des actifs non enregistrés, jusqu’au retrait complet des fonds (au besoin), puis des actifs enregistrés."&" Vous devriez consulter un spécialiste en fiscalité pour discuter des répercussions possibles des retraits du portefeuille de placements et des conséquences fiscales à la vente d’actifs enregistrés et non enregistrés.") -> ² The portfolio value may be a mix of taxed assets and yet-to-be-taxed registered assets. The withdrawals illustrated begin with non-registered assets, and will deplete those assets completely, if needed, before withdrawing registered assets. The potential impacts of investment portfolio withdrawals and the tax consequences of selling registered and non-registered assets should be discussed with your tax professional.
E32: =IF(Tables!L1>=1,IF('Data Entry'!B36="English","* You will not have enough savings to meet your needs. You might have to borrow or sell assets to cover the shortfall. For your specific situation, please consult your own tax and legal advisors.","* Vous n'aurez pas assez d'économies pour répondre à vos besoins. Vous devrez peut-être emprunter ou vendre des actifs pour couvrir le déficit. Pour votre situation spécifique, veuillez consulter vos propres conseillers fiscaux et juridiques."),"") -> 
D33: =IF('Data Entry'!B36="English","ABOUT THIS PRESENTATION","À PROPOS DE CE DOCUMENT") -> ABOUT THIS PRESENTATION
D35: =IF('Data Entry'!B36="English","This presentation was prepared for information purposes only. It is not an insurance contract or an offer to provide insurance."&" It does not form any part of any policy that may be issued and is not intended to provide or replace professional legal or tax advice."&" Tax rates illustrated in this illustration are for illustrative purposes only, and are subject to change without notice. Portfolio investment returns assumed are not guaranteed, certain to change over time and are for illustrative purposes only."&" For your specific situation, please consult your own tax and legal advisors. This presentation is based on values from the critical illness insurance illustration with the same date accompanying this presentation."&" Read this presentation together with the product illustration as it is incomplete without them. Unless specifically stated, the values and rates presented are not guaranteed.","Ce document est fourni à titre indicatif seulement. Il ne s'agit pas d'un contrat d'assurance ni d'une offre d'assurance."&" Il ne fait partie pas partie d'un contrat qui pourrait être établi ultérieurement et son objet n'est pas de fournir ni de remplacer les conseils juridiques ou fiscaux d'un professionnel."&" Les taux d’imposition sont présentés à titre indicatif seulement et peuvent changer à tout moment sans préavis."&" Les rendements présumés des placements ne sont pas garantis; ils évolueront au fil du temps et sont présentés à titre d’exemple. Vos conseillers juridiques et fiscaux sauront vous renseigner sur votre situation personnelle."&" Les valeurs qui figurent dans ce document sont basées sur les valeurs tirées de l’aperçu d’assurance maladies graves ci-joint produit à la même date."&" Ce document est incomplet sans l’aperçu du produit. Vous devez donc le lire avec l’aperçu. À moins d’indication contraire, les valeurs et les taux indiqués ne sont pas garantis.") -> This presentation was prepared for information purposes only. It is not an insurance contract or an offer to provide insurance. It does not form any part of any policy that may be issued and is not intended to provide or replace professional legal or tax advice. Tax rates illustrated in this illustration are for illustrative purposes only, and are subject to change without notice. Portfolio investment returns assumed are not guaranteed, certain to change over time and are for illustrative purposes only. For your specific situation, please consult your own tax and legal advisors. This presentation is based on values from the critical illness insurance illustration with the same date accompanying this presentation. Read this presentation together with the product illustration as it is incomplete without them. Unless specifically stated, the values and rates presented are not guaranteed.

Sheet Detailed Page
D4: =IF('Data Entry'!B36="English","ASSET PROTECTION STRATEGY - CRITICAL ILLNESS INSURANCE","STRATÉGIE DE PROTECTION DE L’ACTIF – ASSURANCE MALADIES GRAVES") -> ASSET PROTECTION STRATEGY - CRITICAL ILLNESS INSURANCE
D6: =Tables!C3 -> Scenario A - No CII Insurance & Don't get a critical illness
E8: =IF('Data Entry'!B36="English","The graph shows the combined projected value of your registered and non-registered savings assuming a "&Tables!H1&" pre-tax growth rate for registered assets and a "&Tables!H2&" pre-tax growth rate for non-registered assets. With the current plan, you’ll have about "&Tables!C1&" at age "& CIYr&"."&CHAR(179)&" If you wait until age "&IllustrateToAge&" to convert your RRSP to a registered retirement income fund, you’ll have about "&Tables!C2&".⁴","Le graphique montre la valeur projetée de votre épargne enregistrée et non enregistrée. On suppose que le taux de croissance avant impôt est de "&Tables!H1&" pour les actifs enregistrés et de "&Tables!H2&" pour les actifs non enregistrés. Avec le plan actuel, vous aurez environ "&Tables!C1&" à "& CIYr&" ans."&CHAR(179)&" Si vous attendez à "&IllustrateToAge&" ans pour convertir votre REER en fonds enregistré de revenu de retraite, vous aurez environ "&Tables!C2&".⁴") -> The graph shows the combined projected value of your registered and non-registered savings assuming a 4.00% pre-tax growth rate for registered assets and a 4.00% pre-tax growth rate for non-registered assets. With the current plan, you’ll have about $607,151 at age 55.³ If you wait until age 71 to convert your RRSP to a registered retirement income fund, you’ll have about $1,283,245.⁴
D13: =Tables!D3 -> Scenario B - No CII Insurance & Get a critical illness
E15: =IF('Data Entry'!B36="English","The adjacent graph shows the projected value of your savings at age "&IllustrateToAge&" if you experience a serious health condition at age "&CIYr&". The projection uses the assumed expenses estimated at "&Tables!I1&" increased by inflation to "&Tables!I2&". Assuming a "&Tables!H1&" pre-tax growth rate for registered assets and a "&Tables!H2&" pre-tax growth rate for non-registered assets, you will have about "&Tables!D2&" at age "&IllustrateToAge&".⁵"&" This is about "&Tables!D1&" than the projected value of your original plan and significantly less than your retirement goals.","Le graphique ci-contre montre la valeur projetée de votre épargne à l'âge de "&IllustrateToAge&" ans si vous tombez gravement malade à "&CIYr&" ans. On suppose que les dépenses s’élèvent au montant estimatif de "&Tables!I2&" ("&Tables!I1&" plus l’inflation ). En présumant un taux de croissance avant impôt de "&Tables!H1&" pour les actifs enregistrés et de "&Tables!H2&" pour les actifs non enregistrés, vous aurez environ "&Tables!D2&" à l’âge de "&IllustrateToAge&" ans,⁵"&" soit environ "&Tables!D1&" que la valeur projetée de votre plan original et beaucoup moins que vos objectifs de retraite.") -> The adjacent graph shows the projected value of your savings at age 71 if you experience a serious health condition at age 55. The projection uses the assumed expenses estimated at $200,000 increased by inflation to $282,416. Assuming a 4.00% pre-tax growth rate for registered assets and a 4.00% pre-tax growth rate for non-registered assets, you will have about $615,549 at age 71.⁵ This is about $667,696 less than the projected value of your original plan and significantly less than your retirement goals.
D21: =Tables!E3 -> Scenario C - Have CII Insurance & Get a critical illness
E23: =IF('Data Entry'!B36="English","If you suffer from a covered condition at age " &CIYr&", you’ll receive the lump sum benefit of "&Tables!J1&". Having these tax-free funds reduces the likelihood you’ll need to withdraw these funds from your savings.⁶ At age "&IllustrateToAge&" you could achieve your retirement goal with "&Tables!E2&".⁷"&" This is about "&Tables!E1&" than if you’d suffered from a serious illness without critical illness insurance.","Si vous souffrez d’une maladie grave couverte à l’âge de " &CIYr&" ans, vous recevrez la prestation de "&Tables!J1&"$ en une somme globale. Grâce à ces fonds libres d’impôt, vous risquez moins d’avoir à puiser dans votre épargne.⁶ À l’âge de "&IllustrateToAge&" ans, vous pourriez atteindre votre objectif de retraite avec "&Tables!E2&".⁷"&" Cela représente environ "&Tables!E1&" que si vous étiez tombé gravement malade sans la protection d’une AMG.") -> If you suffer from a covered condition at age 55, you’ll receive the lump sum benefit of $250,000. Having these tax-free funds reduces the likelihood you’ll need to withdraw these funds from your savings.⁶ At age 71 you could achieve your retirement goal with $1,245,370.⁷ This is about $629,821 more than if you’d suffered from a serious illness without critical illness insurance.
D28: =Tables!F3 -> Scenario D - Have CII Insurance & Don't get a critical illness & Receive ROPC/E
E30: =IF('Data Entry'!B36="English","If you do not suffer a serious illness and cancel your policy at age "&IllustrateToAge&", you"&IF(Variables!E4<>"Not included"," will receive the returnable premium amount bringing"," will bring")&" your assets to about "&Tables!F2&".⁸"&" You will have successfully protected your assets during these important years of accumulation while still achieving your retirement savings goal.","Si vous ne tombez pas gravement malade et résiliez votre contrat à l’âge de "&IllustrateToAge&IF(Variables!E4<>"Not included"," ans, vous recevrez le montant des primes remboursables, ce qui fera passer votre actif à environ "," ans, ce qui fera passer votre actif à environ ")&Tables!F2&".⁸"&" Vous aurez réussi à protéger votre actif pendant les années importantes d’accumulation tout en réalisant votre objectif de retraite.") -> If you do not suffer a serious illness and cancel your policy at age 71, you will receive the returnable premium amount bringing your assets to about $1,283,245.⁸ You will have successfully protected your assets during these important years of accumulation while still achieving your retirement savings goal.
E34: =IF('Data Entry'!B36="English","³ It is assumed that the assets values include "&Tables!R1&" and "&Tables!S1&" based on the assumptions in this illustration. Actual experience may differ. ","³ On suppose que la valeur des actifs comprend "&Tables!R1&" et "&Tables!S1&", d’après les hypothèses du présent aperçu. Les résultats techniques réels peuvent être différents. ") -> ³ It is assumed that the assets values include $520,803 registered assets and $86,348 non-registered assets based on the assumptions in this illustration. Actual experience may differ.
E35: =IF('Data Entry'!B36="English","⁴ It is assumed that the assets values include "&Tables!T1&" and "&Tables!U1&" based on the assumptions in this illustration. Actual experience may differ. ","⁴ On suppose que la valeur des actifs comprend "&Tables!T1&" et "&Tables!U1&", d’après les hypothèses du présent aperçu. Les résultats techniques réels peuvent être différents. ") -> ⁴ It is assumed that the assets values include $1,131,545 registered assets and $151,700 non-registered assets based on the assumptions in this illustration. Actual experience may differ.
E36: =IF('Data Entry'!B36="English","⁵ It is assumed that the assets values include "&Tables!V1&" and "&Tables!W1&" based on the assumptions in this illustration. Actual experience may differ. ","⁵ On suppose que la valeur des actifs comprend "&Tables!V1&" et "&Tables!W1&", d’après les hypothèses du présent aperçu. Les résultats techniques réels peuvent être différents. ") -> ⁵ It is assumed that the assets values include $594,049 registered assets and $21,500 non-registered assets based on the assumptions in this illustration. Actual experience may differ.
E37: =IF('Data Entry'!B36="English","⁶ It is assumed that the critical illness insurance benefit is tax free based on the interpretation of the Income Tax Act and may be subject to change.","⁶ On suppose que la prestation d’AMG est libre d’impôt, d’après notre interprétation de la Loi de l’impôt sur le revenu, laquelle peut changer. ") -> ⁶ It is assumed that the critical illness insurance benefit is tax free based on the interpretation of the Income Tax Act and may be subject to change.
E38: =IF('Data Entry'!B36="English","⁷ It is assumed that the assets values include "&Tables!X1&" and "&Tables!Y1&" based on the assumptions in this illustration. Actual experience may differ. ","⁷ On suppose que la valeur des actifs comprend "&Tables!X1&" et "&Tables!Y1&" , d’après les hypothèses du présent aperçu. Les résultats techniques réels peuvent être différents. ") -> ⁷ It is assumed that the assets values include $1,096,483 registered assets and $148,887 non-registered assets based on the assumptions in this illustration. Actual experience may differ.
E39: =IF('Data Entry'!B36="English",IF(Variables!E4<>"Not included","⁸ It is assumed that the assets values include "&Tables!Z1&", "&Tables!AA1&" and "&Tables!AB1&" based on the assumptions in this illustration. Actual experience may differ. ","⁸ It is assumed that the assets values include "&Tables!Z1&" and "&Tables!AA1&" based on the assumptions in illustration. Actual experience may differ. "),IF(Variables!E4<>"Not included","⁸ On suppose que la valeur des actifs comprend "&Tables!Z1&", "&Tables!AA1&" et un "&Tables!AB1&", d’après les hypothèses du présent aperçu. Les résultats techniques réels peuvent être différents. ","⁸ On suppose que la valeur des actifs comprend "&Tables!Z1&", "&Tables!AA1&", d’après les hypothèses du présent aperçu. Les résultats techniques réels peuvent être différents. ")) -> ⁸ It is assumed that the assets values include $1,131,545 registered assets, $151,700 non-registered assets and $0 ROPC/E value based on the assumptions in this illustration. Actual experience may differ.

Sheet Data (hidden)
A1: =TODAY() -> 2022-03-14 | B1: =MOD(DATE(2007,2,25)-A1,7)+A1-7 -> 2022-03-13 | E1: Tool Version:
A2: User | B2: Date | C2: Age | D2: Gender | E2: SStatus | F2: AnnualIncome | G2: SalIn | H2: ROPC/E | I2: IlustrateToAge | J2: RegBal | K2: RegDep | L2: RegYears | M2: RegGrowthBeforeTax | N2: NonRegBal | O2: NonRegDep | P2: NonRegYears | Q2: NonRegGrowthBeforeTax | R2: RegTaxRate | S2: NonRegTaxRate | T2: IllnessAge | U2: # Months Income Replacement | V2: Income Replacement Percentage | W2: Health Care | X2: Home Care | Y2: Health & Home Care Inflation Rate | Z2: CI Need | AA2: CII Insurance | AB2: CII Years | AC2: CII Premium
